Workbook

Sheet miR-200b Mim_Inh pairs
A1: test_id | B1: gene_id | C1: gene | D1: locus | E1: sample_1 | F1: sample_2 | G1: status | H1: value_1 | I1: value_2 | J1: s1_vs_s2_log2(fold_change) | K1: s2_vs_s1_log2(fold_change) | L1: log2(fold_change) | M1: test_stat | N1: p_value | O1: q_value | P1: significant | Q1: test_id | R1: gene_id | S1: gene | T1: locus | U1: sample_1 | V1: sample_2 | W1: status | X1: value_1 | Y1: value_2 | Z1: s1_vs_s2_log2(fold_change) | AA1: s2_vs_s1_log2(fold_change) | AB1: log2(fold_change) | AC1: test_stat | AD1: p_value | AE1: q_value | AF1: significant
A2: CD79B | B2: CD79B | C2: CD79B | D2: chr17:62006097-62009704 | E2: IN_200b_rom | F2: C67_HUVEC | G2: OK | H2: 6.84324 | I2: 0.834361 | J2: =IF(G2="NOTEST","",IF(H2=0,-LOG(I2,2),IF(I2=0,LOG(H2,2),LOG((H2/I2),2)))) -> 3.035935916 | K2: =IF(G2="NOTEST","",IF(H2=0,LOG(I2,2),IF(I2=0,-LOG(H2,2),LOG((I2/H2),2)))) -> -3.035935916 | L2: -3.03594 | M2: 3.43625 | N2: 0.000589828 | O2: 0.0166696 | P2: yes | Q2: CD79B | R2: CD79B | S2: CD79B | T2: chr17:62006097-62009704 | U2: Mim200b_rom | V2: C67_HUVEC | W2: OK | X2: 0.59487 | Y2: 0.879736 | Z2: =IF(W2="NOTEST","",IF(X2=0,-LOG(Y2,2),IF(Y2=0,LOG(X2,2),LOG((X2/Y2),2)))) -> -0.564496227 | AA2: =IF(W2="NOTEST","",IF(X2=0,LOG(Y2,2),IF(Y2=0,-LOG(X2,2),LOG((Y2/X2),2)))) -> 0.564496227 | AB2: 0.564496 | AC2: -0.469455 | AD2: 0.638745 | AE2: 0.858803 | AF2: no
A3: LFNG | B3: LFNG | C3: LFNG | D3: chr7:2552162-2568810 | E3: IN_200b_rom | F3: C67_HUVEC | G3: OK | H3: 4.72296 | I3: 0.673903 | J3: =IF(G3="NOTEST","",IF(H3=0,-LOG(I3,2),IF(I3=0,LOG(H3,2),LOG((H3/I3),2)))) -> 2.809078464 | K3: -2.809078464 | L3: -2.80908 | M3: 3.03966 | N3: 0.00236849 | O3: 0.0447921 | P3: yes | Q3: LFNG | R3: LFNG | S3: LFNG | T3: chr7:2552162-2568810 | U3: Mim200b_rom | V3: C67_HUVEC | W3: OK | X3: 0.543436 | Y3: 0.709396 | Z3: -0.3844810552 | AA3: 0.3844810552 | AB3: 0.384483 | AC3: -0.334595 | AD3: 0.737931 | AE3: 0.901483 | AF3: no
A4: C10orf116 | B4: C10orf116 | C4: C10orf116 | D4: chr10:88728187-88769960 | E4: IN_200b_rom | F4: C67_HUVEC | G4: OK | H4: 71.4067 | I4: 11.2593 | J4: 2.66494231 | K4: -2.66494231 | L4: -2.66494 | M4: 4.16237 | N4: 3.14966e-05 | O4: 0.00188576 | P4: yes | Q4: C10orf116 | R4: C10orf116 | S4: C10orf116 | T4: chr10:88728187-88769960 | U4: Mim200b_rom | V4: C67_HUVEC | W4: OK | X4: 9.21635 | Y4: 11.8453 | Z4: -0.3620473268 | AA4: 0.3620473268 | AB4: 0.362048 | AC4: -0.487591 | AD4: 0.625839 | AE4: 0.853806 | AF4: no
A5: SELP | B5: SELP | C5: SELP | D5: chr1:169558087-169599377 | E5: IN_200b_rom | F5: C67_HUVEC | G5: OK | H5: 5.11744 | I5: 0.857996 | J5: 2.576379455 | K5: -2.576379455 | L5: -2.57638 | M5: 3.19467 | N5: 0.00139989 | O5: 0.0305965 | P5: yes | Q5: SELP | R5: SELP | S5: SELP | T5: chr1:169558087-169599377 | U5: Mim200b_rom | V5: C67_HUVEC | W5: OK | X5: 0.508638 | Y5: 0.903256 | Z5: -0.8284956842 | AA5: 0.8284956842 | AB5: 0.828496 | AC5: -0.804938 | AD5: 0.420855 | AE5: 0.731005 | AF5: no
A6: HTRA3 | B6: HTRA3 | C6: HTRA3 | D6: chr4:8271488-8308838 | E6: IN_200b_rom | F6: C67_HUVEC | G6: OK | H6: 13.8702 | I6: 2.39799 | J6: 2.532091043 | K6: -2.532091043 | L6: -2.53209 | M6: 3.69399 | N6: 0.000220762 | O6: 0.00841313 | P6: yes | Q6: HTRA3 | R6: HTRA3 | S6: HTRA3 | T6: chr4:8271488-8308838 | U6: Mim200b_rom | V6: C67_HUVEC | W6: OK | X6: 1.0145 | Y6: 2.52316 | Z6: -1.314462829 | AA6: 1.314462829 | AB6: 1.31446 | AC6: -1.50265 | AD6: 0.13293 | AE6: 0.444958 | AF6: no
A7: NRGN | B7: NRGN | C7: NRGN | D7: chr11:124609828-124617102 | E7: IN_200b_rom | F7: C67_HUVEC | G7: OK | H7: 29.4606 | I7: 5.09471 | J7: 2.53171488 | K7: -2.53171488 | L7: -2.53171 | M7: 4.7325 | N7: 2.2177e-06 | O7: 0.000207527 | P7: yes | Q7: NRGN | R7: NRGN | S7: NRGN | T7: chr11:124609828-124617102 | U7: Mim200b_rom | V7: C67_HUVEC | W7: OK | X7: 2.67691 | Y7: 5.3714 | Z7: -1.004729526 | AA7: 1.004729526 | AB7: 1.00473 | AC7: -1.32574 | AD7: 0.184925 | AE7: 0.517425 | AF7: no
A8: FAM3D | B8: FAM3D | C8: FAM3D | D8: chr3:58619669-58652561 | E8: IN_200b_rom | F8: C67_HUVEC | G8: OK | H8: 4.83534 | I8: 0.839478 | J8: 2.526052915 | K8: -2.526052915 | L8: -2.52605 | M8: 2.56256 | N8: 0.0103905 | O8: 0.110335 | P8: no | Q8: FAM3D | R8: FAM3D | S8: FAM3D | T8: chr3:58619669-58652561 | U8: Mim200b_rom | V8: C67_HUVEC | W8: OK | X8: 0.119916 | Y8: 0.883993 | Z8: -2.88201078 | AA8: 2.88201078 | AB8: 2.88201 | AC8: -1.99628 | AD8: 0.0459038 | AE8: 0.256993 | AF8: no
A9: SCARA3 | B9: SCARA3 | C9: SCARA3 | D9: chr8:27491576-27534286 | E9: IN_200b_rom | F9: C67_HUVEC | G9: OK | H9: 25.7298 | I9: 4.53516 | J9: 2.504214888 | K9: -2.504214888 | L9: -2.50422 | M9: 4.12685 | N9: 3.67764e-05 | O9: 0.00212144 | P9: yes | Q9: SCARA3 | R9: SCARA3 | S9: SCARA3 | T9: chr8:27491576-27534286 | U9: Mim200b_rom | V9: C67_HUVEC | W9: OK | X9: 2.66262 | Y9: 4.77171 | Z9: -0.8416598194 | AA9: 0.8416598194 | AB9: 0.841661 | AC9: -1.32616 | AD9: 0.184786 | AE9: 0.517425 | AF9: no
A10: GIMAP8 | B10: GIMAP8 | C10: GIMAP8 | D10: chr7:150147961-150176483 | E10: IN_200b_rom | F10: C67_HUVEC | G10: OK | H10: 8.46635 | I10: 1.63029 | J10: 2.376611514 | K10: -2.376611514 | L10: -2.37661 | M10: 3.55444 | N10: 0.000378778 | O10: 0.0123966 | P10: yes | Q10: GIMAP8 | R10: GIMAP8 | S10: GIMAP8 | T10: chr7:150147961-150176483 | U10: Mim200b_rom | V10: C67_HUVEC | W10: OK | X10: 0.760106 | Y10: 1.71721 | Z10: -1.175793952 | AA10: 1.175793952 | AB10: 1.1758 | AC10: -1.38298 | AD10: 0.166671 | AE10: 0.492068 | AF10: no
A11: EFCAB4A | B11: EFCAB4A | C11: EFCAB4A | D11: chr11:827584-831991 | E11: IN_200b_rom | F11: C67_HUVEC | G11: OK | H11: 2.46326 | I11: 0.481353 | J11: 2.355401727 | K11: -2.355401727 | L11: -2.3554 | M11: 2.17673 | N11: 0.0295009 | O11: 0.199403 | P11: no | Q11: EFCAB4A | R11: EFCAB4A | S11: EFCAB4A | T11: chr11:827584-831991 | U11: Mim200b_rom | V11: C67_HUVEC | W11: OK | X11: 0.396202 | Y11: 0.506815 | Z11: -0.3552230611 | AA11: 0.3552230611 | AB11: 0.355223 | AC11: -0.269001 | AD11: 0.787929 | AE11: 0.92471 | AF11: no
A12: C20orf160 | B12: C20orf160 | C12: C20orf160 | D12: chr20:30598244-30619984 | E12: IN_200b_rom | F12: C67_HUVEC | G12: OK | H12: 5.68239 | I12: 1.13404 | J12: 2.325026323 | K12: -2.325026323 | L12: -2.32503 | M12: 2.79401 | N12: 0.00520592 | O12: 0.0729926 | P12: no | Q12: C20orf160 | R12: C20orf160 | S12: C20orf160 | T12: chr20:30598244-30619984 | U12: Mim200b_rom | V12: C67_HUVEC | W12: OK | X12: 0.708515 | Y12: 1.19358 | Z12: -0.7524249647 | AA12: 0.7524249647 | AB12: 0.752426 | AC12: -0.720289 | AD12: 0.471347 | AE12: 0.763376 | AF12: no
A13: PI16 | B13: PI16 | C13: PI16 | D13: chr6:36916038-36932613 | E13: IN_200b_rom | F13: C67_HUVEC | G13: OK | H13: 2.94302 | I13: 0.61624 | J13: 2.255733111 | K13: -2.255733111 | L13: -2.25573 | M13: 2.33868 | N13: 0.0193522 | O13: 0.159719 | P13: no | Q13: PI16 | R13: PI16 | S13: PI16 | T13: chr6:36916038-36932613 | U13: Mim200b_rom | V13: C67_HUVEC | W13: OK | X13: 0.528173 | Y13: 0.648684 | Z13: -0.2965053013 | AA13: 0.2965053013 | AB13: 0.296505 | AC13: -0.250302 | AD13: 0.802354 | AE13: 0.930974 | AF13: no
A14: LDB2 | B14: LDB2 | C14: LDB2 | D14: chr4:16503164-16900424 | E14: IN_200b_rom | F14: C67_HUVEC | G14: OK | H14: 21.5701 | I14: 4.98411 | J14: 2.113625051 | K14: -2.113625051 | L14: -2.11362 | M14: 5.39352 | N14: 6.90924e-08 | O14: 1.21228e-05 | P14: yes | Q14: LDB2 | R14: LDB2 | S14: LDB2 | T14: chr4:16503164-16900424 | U14: Mim200b_rom | V14: C67_HUVEC | W14: OK | X14: 3.04005 | Y14: 5.24876 | Z14: -0.7878815797 | AA14: 0.7878815797 | AB14: 0.787884 | AC14: -1.55173 | AD14: 0.120727 | AE14: 0.425172 | AF14: no
A15: RAB26 | B15: RAB26 | C15: RAB26 | D15: chr16:2198650-2204141 | E15: IN_200b_rom | F15: C67_HUVEC | G15: OK | H15: 3.3565 | I15: 0.808127 | J15: 2.054303702 | K15: -2.054303702 | L15: -2.0543 | M15: 2.0957 | N15: 0.0361085 | O15: 0.222083 | P15: no | Q15: RAB26 | R15: RAB26 | S15: RAB26 | T15: chr16:2198650-2204141 | U15: Mim200b_rom | V15: C67_HUVEC | W15: OK | X15: 0.711802 | Y15: 0.849956 | Z15: -0.2559121721 | AA15: 0.2559121721 | AB15: 0.255912 | AC15: -0.216114 | AD15: 0.828899 | AE15: 0.941647 | AF15: no
A16: C3orf54 | B16: C3orf54 | C16: C3orf54 | D16: chr3:49840686-49842463 | E16: IN_200b_rom | F16: C67_HUVEC | G16: OK | H16: 15.1474 | I16: 3.82963 | J16: 1.983793263 | K16: -1.983793263 | L16: -1.9838 | M16: 2.75576 | N16: 0.00585552 | O16: 0.0786826 | P16: no | Q16: C3orf54 | R16: C3orf54 | S16: C3orf54 | T16: chr3:49840686-49842463 | U16: Mim200b_rom | V16: C67_HUVEC | W16: OK | X16: 2.46597 | Y16: 4.03988 | Z16: -0.7121571914 | AA16: 0.7121571914 | AB16: 0.712159 | AC16: -0.784442 | AD16: 0.432781 | AE16: 0.738734 | AF16: no
A17: ABHD14A | B17: ABHD14A | C17: ABHD14A | D17: chr3:52009041-52023218 | E17: IN_200b_rom | F17: C67_HUVEC | G17: OK | H17: 13.7902 | I17: 3.50968 | J17: 1.974231979 | K17: -1.974231979 | L17: -1.97423 | M17: 2.64276 | N17: 0.00822331 | O17: 0.0961899 | P17: no | Q17: ABHD14A-ACY1 | R17: ABHD14A-ACY1 | S17: ABHD14A-ACY1 | T17: chr3:52009041-52023218 | U17: Mim200b_rom | V17: C67_HUVEC | W17: OK | X17: 0.693615 | Y17: 0 | Z17: -0.5277929965 | AA17: 0.5277929965 | AB17: -1.79769e+308 | AC17: -1.79769e+308 | AD17: 0.0536276 | AE17: 0.279483 | AF17: no
A18: CLDN5 | B18: CLDN5 | C18: CLDN5 | D18: chr22:19510546-19512860 | E18: IN_200b_rom | F18: C67_HUVEC | G18: OK | H18: 103.136 | I18: 26.3903 | J18: 1.966468342 | K18: -1.966468342 | L18: -1.96647 | M18: 3.19259 | N18: 0.00141001 | O18: 0.0307645 | P18: yes | Q18: CLDN5 | R18: CLDN5 | S18: CLDN5 | T18: chr22:19510546-19512860 | U18: Mim200b_rom | V18: C67_HUVEC | W18: OK | X18: 21.0719 | Y18: 27.7582 | Z18: -0.3975936142 | AA18: 0.3975936142 | AB18: 0.397595 | AC18: -0.66244 | AD18: 0.507689 | AE18: 0.787949 | AF18: no
A19: METTL7A | B19: METTL7A | C19: METTL7A | D19: chr12:51318533-51326300 | E19: IN_200b_rom | F19: C67_HUVEC | G19: OK | H19: 2.93384 | I19: 0.760465 | J19: 1.947836439 | K19: -1.947836439 | L19: -1.94784 | M19: 2.24005 | N19: 0.025088 | O19: 0.182375 | P19: no | Q19: METTL7A | R19: METTL7A | S19: METTL7A | T19: chr12:51318533-51326300 | U19: Mim200b_rom | V19: C67_HUVEC | W19: OK | X19: 0.463617 | Y19: 0.800999 | Z19: -0.7888669732 | AA19: 0.7888669732 | AB19: 0.788868 | AC19: -0.726228 | AD19: 0.467699 | AE19: 0.761035 | AF19: no
A20: MAP1A | B20: MAP1A | C20: MAP1A | D20: chr15:43809805-43823818 | E20: IN_200b_rom | F20: C67_HUVEC | G20: OK | H20: 9.54565 | I20: 2.58191 | J20: 1.886404727 | K20: -1.886404727 | L20: -1.8864 | M20: 3.09486 | N20: 0.00196905 | O20: 0.0397877 | P20: yes | Q20: MAP1A | R20: MAP1A | S20: MAP1A | T20: chr15:43809805-43823818 | U20: Mim200b_rom | V20: C67_HUVEC | W20: OK | X20: 1.92766 | Y20: 2.71948 | Z20: -0.4964802038 | AA20: 0.4964802038 | AB20: 0.496479 | AC20: -0.829049 | AD20: 0.407077 | AE20: 0.721012 | AF20: no
A21: CRTAP | B21: CRTAP | C21: CRTAP | D21: chr3:33155449-33189265 | E21: IN_200b_rom | F21: C67_HUVEC | G21: OK | H21: 26.2072 | I21: 7.35691 | J21: 1.832791376 | K21: -1.832791376 | L21: -1.83279 | M21: 2.72598 | N21: 0.00641116 | O21: 0.0825991 | P21: no | Q21: CRTAP | R21: CRTAP | S21: CRTAP | T21: chr3:33155449-33189265 | U21: Mim200b_rom | V21: C67_HUVEC | W21: OK | X21: 4.42493 | Y21: 7.74732 | Z21: -0.8080426981 | AA21: 0.8080426981 | AB21: 0.808043 | AC21: -1.37674 | AD21: 0.168592 | AE21: 0.495288 | AF21: no
A22: ST3GAL5 | B22: ST3GAL5 | C22: ST3GAL5 | D22: chr2:86066270-86116157 | E22: IN_200b_rom | F22: C67_HUVEC | G22: OK | H22: 28.4587 | I22: 7.99552 | J22: 1.831605991 | K22: -1.831605991 | L22: -1.83161 | M22: 3.23818 | N22: 0.00120296 | O22: 0.0276811 | P22: yes | Q22: ST3GAL5 | R22: ST3GAL5 | S22: ST3GAL5 | T22: chr2:86066270-86116157 | U22: Mim200b_rom | V22: C67_HUVEC | W22: OK | X22: 3.59543 | Y22: 8.42122 | Z22: -1.227864933 | AA22: 1.227864933 | AB22: 1.22786 | AC22: -1.98387 | AD22: 0.0472705 | AE22: 0.262148 | AF22: no
A23: CHST7 | B23: CHST7 | C23: CHST7 | D23: chrX:46433191-46457838 | E23: IN_200b_rom | F23: C67_HUVEC | G23: OK | H23: 4.00677 | I23: 1.13678 | J23: 1.81748662 | K23: -1.81748662 | L23: -1.81748 | M23: 1.99476 | N23: 0.0460696 | O23: 0.252932 | P23: no | Q23: CHST7 | R23: CHST7 | S23: CHST7 | T23: chrX:46433191-46457838 | U23: Mim200b_rom | V23: C67_HUVEC | W23: OK | X23: 0.797687 | Y23: 1.19589 | Z23: -0.5841900226 | AA23: 0.5841900226 | AB23: 0.584191 | AC23: -0.52359 | AD23: 0.600564 | AE23: 0.841114 | AF23: no
A24: CCDC159 | B24: CCDC159 | C24: CCDC159 | D24: chr19:11457180-11465620 | E24: IN_200b_rom | F24: C67_HUVEC | G24: OK | H24: 16.0201 | I24: 4.62409 | J24: 1.79264177 | K24: -1.79264177 | L24: -1.79264 | M24: 2.60143 | N24: 0.00928361 | O24: 0.103374 | P24: no | Q24: CCDC159 | R24: CCDC159 | S24: CCDC159 | T24: chr19:11457180-11465620 | U24: Mim200b_rom | V24: C67_HUVEC | W24: OK | X24: 3.80992 | Y24: 4.87639 | Z24: -0.3560528087 | AA24: 0.3560528087 | AB24: 0.356053 | AC24: -0.427126 | AD24: 0.669288 | AE24: 0.872219 | AF24: no
A25: B3GNT1 | B25: B3GNT1 | C25: B3GNT1 | D25: chr11:66112842-66115161 | E25: IN_200b_rom | F25: C67_HUVEC | G25: OK | H25: 31.7842 | I25: 9.6047 | J25: 1.726497319 | K25: -1.726497319 | L25: -1.7265 | M25: 2.97115 | N25: 0.00296685 | O25: 0.0512725 | P25: no | Q25: B3GNT1 | R25: B3GNT1 | S25: B3GNT1 | T25: chr11:66112842-66115161 | U25: Mim200b_rom | V25: C67_HUVEC | W25: OK | X25: 1.76646 | Y25: 10.1126 | Z25: -2.517220983 | AA25: 2.517220983 | AB25: 2.51723 | AC25: -3.29995 | AD25: 0.000967025 | AE25: 0.0209627 | AF25: yes
A26: HOPX | B26: HOPX | C26: HOPX | D26: chr4:57514153-57547872 | E26: IN_200b_rom | F26: C67_HUVEC | G26: OK | H26: 14.9866 | I26: 4.6626 | J26: 1.684466544 | K26: -1.684466544 | L26: -1.68446 | M26: 2.49402 | N26: 0.0126304 | O26: 0.123403 | P26: no | Q26: HOPX | R26: HOPX | S26: HOPX | T26: chr4:57514153-57547872 | U26: Mim200b_rom | V26: C67_HUVEC | W26: OK | X26: 1.28635 | Y26: 4.91378 | Z26: -1.933550031 | AA26: 1.933550031 | AB26: 1.93355 | AC26: -1.93467 | AD26: 0.0530305 | AE26: 0.277678 | AF26: no
A27: REEP2 | B27: REEP2 | C27: REEP2 | D27: chr5:137774775-137782658 | E27: IN_200b_rom | F27: C67_HUVEC | G27: OK | H27: 3.8023 | I27: 1.21019 | J27: 1.651638796 | K27: -1.651638796 | L27: -1.65164 | M27: 1.96604 | N27: 0.0492938 | O27: 0.262755 | P27: no | Q27: REEP2 | R27: REEP2 | S27: REEP2 | T27: chr5:137774775-137782658 | U27: Mim200b_rom | V27: C67_HUVEC | W27: OK | X27: 0.547427 | Y27: 1.27478 | Z27: -1.219509792 | AA27: 1.219509792 | AB27: 1.21951 | AC27: -1.12277 | AD27: 0.261535 | AE27: 0.598496 | AF27: no
A28: CDCA7 | B28: CDCA7 | C28: CDCA7 | D28: chr2:174219560-174233718 | E28: IN_200b_rom | F28: C67_HUVEC | G28: OK | H28: 1.77337 | I28: 0.579662 | J28: 1.613209758 | K28: -1.613209758 | L28: -1.61321 | M28: 1.61254 | N28: 0.106845 | O28: 0.386585 | P28: no | Q28: CDCA7 | R28: CDCA7 | S28: CDCA7 | T28: chr2:174219560-174233718 | U28: Mim200b_rom | V28: C67_HUVEC | W28: OK | X28: 0.399157 | Y28: 0.610275 | Z28: -0.6125031796 | AA28: 0.6125031796 | AB28: 0.612504 | AC28: -0.501799 | AD28: 0.615809 | AE28: 0.846879 | AF28: no
A29: GLT8D2 | B29: GLT8D2 | C29: GLT8D2 | D29: chr12:104382764-104443915 | E29: IN_200b_rom | F29: C67_HUVEC | G29: OK | H29: 1.91571 | I29: 0.65046 | J29: 1.558346936 | K29: -1.558346936 | L29: -1.55835 | M29: 1.53403 | N29: 0.125021 | O29: 0.417277 | P29: no | Q29: GLT8D2 | R29: GLT8D2 | S29: GLT8D2 | T29: chr12:104382764-104443915 | U29: Mim200b_rom | V29: C67_HUVEC | W29: OK | X29: 0.531279 | Y29: 0.684671 | Z29: -0.3659412186 | AA29: 0.3659412186 | AB29: 0.365942 | AC29: -0.301791 | AD29: 0.762812 | AE29: 0.912008 | AF29: no
A30: CORO6 | B30: CORO6 | C30: CORO6 | D30: chr17:27920526-27948441 | E30: IN_200b_rom | F30: C67_HUVEC | G30: OK | H30: 4.27881 | I30: 1.46526 | J30: 1.546052934 | K30: -1.546052934 | L30: -1.54605 | M30: 1.93589 | N30: 0.0528811 | O30: 0.272006 | P30: no | Q30: CORO6 | R30: CORO6 | S30: CORO6 | T30: chr17:27920526-27948441 | U30: Mim200b_rom | V30: C67_HUVEC | W30: OK | X30: 1.10161 | Y30: 1.54269 | Z30: -0.4858346239 | AA30: 0.4858346239 | AB30: 0.485825 | AC30: -0.502833 | AD30: 0.615082 | AE30: 0.846521 | AF30: no
A31: CDCA5 | B31: CDCA5 | C31: CDCA5 | D31: chr11:64844926-64851615 | E31: IN_200b_rom | F31: C67_HUVEC | G31: OK | H31: 2.154 | I31: 0.747678 | J31: 1.526529262 | K31: -1.526529262 | L31: -1.52653 | M31: 1.65389 | N31: 0.0981504 | O31: 0.373362 | P31: no | Q31: CDCA5 | R31: CDCA5 | S31: CDCA5 | T31: chr11:64844926-64851615 | U31: Mim200b_rom | V31: C67_HUVEC | W31: OK | X31: 0.606617 | Y31: 0.787405 | Z31: -0.3763199446 | AA31: 0.3763199446 | AB31: 0.376321 | AC31: -0.343782 | AD31: 0.73101 | AE31: 0.900163 | AF31: no
A32: PRKCDBP | B32: PRKCDBP | C32: PRKCDBP | D32: chr11:6340175-6341740 | E32: IN_200b_rom | F32: C67_HUVEC | G32: OK | H32: 81.4337 | I32: 28.3864 | J32: 1.520426058 | K32: -1.520426058 | L32: -1.52043 | M32: 2.63852 | N32: 0.00832685 | O32: 0.0967737 | P32: no | Q32: PRKCDBP | R32: PRKCDBP | S32: PRKCDBP | T32: chr11:6340175-6341740 | U32: Mim200b_rom | V32: C67_HUVEC | W32: OK | X32: 22.7303 | Y32: 29.9237 | Z32: -0.396671847 | AA32: 0.396671847 | AB32: 0.396673 | AC32: -0.655774 | AD32: 0.511969 | AE32: 0.790112 | AF32: no
A33: CGNL1 | B33: CGNL1 | C33: CGNL1 | D33: chr15:57668704-57842921 | E33: IN_200b_rom | F33: C67_HUVEC | G33: OK | H33: 10.7292 | I33: 3.74591 | J33: 1.518154366 | K33: -1.518154366 | L33: -1.51816 | M33: 2.60729 | N33: 0.00912627 | O33: 0.102288 | P33: no | Q33: CGNL1 | R33: CGNL1 | S33: CGNL1 | T33: chr15:57668704-57842921 | U33: Mim200b_rom | V33: C67_HUVEC | W33: OK | X33: 2.83243 | Y33: 3.94505 | Z33: -0.4780032832 | AA33: 0.4780032832 | AB33: 0.478003 | AC33: -0.797141 | AD33: 0.425369 | AE33: 0.733841 | AF33: no
A34: UBE2C | B34: UBE2C | C34: UBE2C | D34: chr20:44441254-44445596 | E34: IN_200b_rom | F34: C67_HUVEC | G34: OK | H34: 2.67886 | I34: 0.967445 | J34: 1.469367636 | K34: -1.469367636 | L34: -1.46937 | M34: 1.36138 | N34: 0.173393 | O34: 0.484404 | P34: no | Q34: UBE2C | R34: UBE2C | S34: UBE2C | T34: chr20:44441254-44445596 | U34: Mim200b_rom | V34: C67_HUVEC | W34: OK | X34: 0.279495 | Y34: 1.02046 | Z34: -1.868325253 | AA34: 1.868325253 | AB34: 1.86832 | AC34: -1.34881 | AD34: 0.177399 | AE34: 0.508692 | AF34: no
A35: ASB9 | B35: ASB9 | C35: ASB9 | D35: chrX:15262108-15288589 | E35: IN_200b_rom | F35: C67_HUVEC | G35: OK | H35: 2.47864 | I35: 0.897596 | J35: 1.465410596 | K35: -1.465410596 | L35: -1.46541 | M35: 1.64577 | N35: 0.0998118 | O35: 0.375966 | P35: no | Q35: ASB9 | R35: ASB9 | S35: ASB9 | T35: chrX:15262108-15288589 | U35: Mim200b_rom | V35: C67_HUVEC | W35: OK | X35: 0.623753 | Y35: 0.945408 | Z35: -0.5999622235 | AA35: 0.5999622235 | AB35: 0.599962 | AC35: -0.560431 | AD35: 0.575186 | AE35: 0.827077 | AF35: no
A36: CDC25B | B36: CDC25B | C36: CDC25B | D36: chr20:3776400-3786761 | E36: IN_200b_rom | F36: C67_HUVEC | G36: OK | H36: 31.4697 | I36: 11.6114 | J36: 1.438421495 | K36: -1.438421495 | L36: -1.43842 | M36: 3.30289 | N36: 0.000956947 | O36: 0.0235197 | P36: yes | Q36: CDC25B | R36: CDC25B | S36: CDC25B | T36: chr20:3776400-3786761 | U36: Mim200b_rom | V36: C67_HUVEC | W36: OK | X36: 7.44968 | Y36: 12.1957 | Z36: -0.711122206 | AA36: 0.711122206 | AB36: 0.711117 | AC36: -2.01281 | AD36: 0.0441348 | AE36: 0.251297 | AF36: no
A37: RECK | B37: RECK | C37: RECK | D37: chr9:36036909-36124452 | E37: IN_200b_rom | F37: C67_HUVEC | G37: OK | H37: 7.55704 | I37: 2.81562 | J37: 1.42436862 | K37: -1.42436862 | L37: -1.42437 | M37: 2.33543 | N37: 0.0195211 | O37: 0.160554 | P37: no | Q37: RECK | R37: RECK | S37: RECK | T37: chr9:36036909-36124452 | U37: Mim200b_rom | V37: C67_HUVEC | W37: OK | X37: 2.32241 | Y37: 2.963 | Z37: -0.3514359371 | AA37: 0.3514359371 | AB37: 0.351437 | AC37: -0.499161 | AD37: 0.617666 | AE37: 0.847827 | AF37: no
A38: SULT1B1 | B38: SULT1B1 | C38: SULT1B1 | D38: chr4:70592685-70626430 | E38: IN_200b_rom | F38: C67_HUVEC | G38: OK | H38: 12.3124 | I38: 4.6186 | J38: 1.414584497 | K38: -1.414584497 | L38: -1.41458 | M38: 2.04386 | N38: 0.0409674 | O38: 0.238137 | P38: no | Q38: SULT1B1 | R38: SULT1B1 | S38: SULT1B1 | T38: chr4:70592685-70626430 | U38: Mim200b_rom | V38: C67_HUVEC | W38: OK | X38: 2.67877 | Y38: 4.86421 | Z38: -0.8606347986 | AA38: 0.8606347986 | AB38: 0.860638 | AC38: -0.997827 | AD38: 0.318363 | AE38: 0.651146 | AF38: no
A39: IFT172 | B39: IFT172 | C39: IFT172 | D39: chr2:27665232-27712571 | E39: IN_200b_rom | F39: C67_HUVEC | G39: OK | H39: 4.15269 | I39: 1.55971 | J39: 1.412768367 | K39: -1.412768367 | L39: -1.41277 | M39: 2.25283 | N39: 0.0242698 | O39: 0.178455 | P39: no | Q39: IFT172 | R39: IFT172 | S39: IFT172 | T39: chr2:27665232-27712571 | U39: Mim200b_rom | V39: C67_HUVEC | W39: OK | X39: 0.397864 | Y39: 1.64168 | Z39: -2.044825671 | AA39: 2.044825671 | AB39: 2.04482 | AC39: -2.38802 | AD39: 0.0169393 | AE39: 0.146727 | AF39: no
A40: FSCN1 | B40: FSCN1 | C40: FSCN1 | D40: chr7:5632453-5646286 | E40: IN_200b_rom | F40: C67_HUVEC | G40: OK | H40: 172.258 | I40: 64.9239 | J40: 1.407749415 | K40: -1.407749415 | L40: -1.40775 | M40: 1.53247 | N40: 0.125407 | O40: 0.41732 | P40: no | Q40: FSCN1 | R40: FSCN1 | S40: FSCN1 | T40: chr7:5632453-5646286 | U40: Mim200b_rom | V40: C67_HUVEC | W40: OK | X40: 49.7724 | Y40: 68.3081 | Z40: -0.4567107093 | AA40: 0.4567107093 | AB40: 0.456709 | AC40: -0.647615 | AD40: 0.517234 | AE40: 0.792955 | AF40: no
A41: CFP | B41: CFP | C41: CFP | D41: chrX:47483611-47489704 | E41: IN_200b_rom | F41: C67_HUVEC | G41: OK | H41: 2.64721 | I41: 0 | J41: 1.404472647 | K41: -1.404472647 | L41: -1.79769e+308 | M41: -1.79769e+308 | N41: 0.00124003 | O41: 0.0282768 | P41: yes | Q41: CFP | R41: CFP | S41: CFP | T41: chrX:47483611-47489704 | U41: Mim200b_rom | V41: C67_HUVEC | W41: OK | X41: 0.536295 | Y41: 0 | Z41: -0.898901292 | AA41: 0.898901292 | AB41: -1.79769e+308 | AC41: -1.79769e+308 | AD41: 0.0197497 | AE41: 0.16 | AF41: no
A42: GIMAP1 | B42: GIMAP1 | C42: GIMAP1 | D42: chr7:150413644-150440737 | E42: IN_200b_rom | F42: C67_HUVEC | G42: OK | H42: 8.51147 | I42: 3.2359 | J42: 1.395241294 | K42: -1.395241294 | L42: -1.39524 | M42: 2.24002 | N42: 0.0250894 | O42: 0.182375 | P42: no | Q42: GIMAP1 | R42: GIMAP1 | S42: GIMAP1 | T42: chr7:150413644-150440737 | U42: Mim200b_rom | V42: C67_HUVEC | W42: OK | X42: 1.41621 | Y42: 3.4072 | Z42: -1.266551426 | AA42: 1.266551426 | AB42: 1.26655 | AC42: -1.671 | AD42: 0.0947217 | AE42: 0.373988 | AF42: no
A43: TSPAN18 | B43: TSPAN18 | C43: TSPAN18 | D43: chr11:44785975-44972608 | E43: IN_200b_rom | F43: C67_HUVEC | G43: OK | H43: 5.54568 | I43: 2.14542 | J43: 1.370104266 | K43: -1.370104266 | L43: -1.3701 | M43: 2.18979 | N43: 0.0285397 | O43: 0.195424 | P43: no | Q43: TSPAN18 | R43: TSPAN18 | S43: TSPAN18 | T43: chr11:44785975-44972608 | U43: Mim200b_rom | V43: C67_HUVEC | W43: OK | X43: 1.1914 | Y43: 2.2587 | Z43: -0.9228348008 | AA43: 0.9228348008 | AB43: 0.922837 | AC43: -1.21389 | AD43: 0.224791 | AE43: 0.560236 | AF43: no
A44: FAM49A | B44: FAM49A | C44: FAM49A | D44: chr2:16730729-16847134 | E44: IN_200b_rom | F44: C67_HUVEC | G44: OK | H44: 6.62555 | I44: 2.57658 | J44: 1.362582833 | K44: -1.362582833 | L44: -1.36258 | M44: 2.24289 | N44: 0.0249039 | O44: 0.181646 | P44: no | Q44: FAM49A | R44: FAM49A | S44: FAM49A | T44: chr2:16730729-16847134 | U44: Mim200b_rom | V44: C67_HUVEC | W44: OK | X44: 2.09878 | Y44: 2.71284 | Z44: -0.3702530145 | AA44: 0.3702530145 | AB44: 0.370251 | AC44: -0.527216 | AD44: 0.598043 | AE44: 0.839389 | AF44: no
A45: CDKN3 | B45: CDKN3 | C45: CDKN3 | D45: chr14:54863672-54886934 | E45: IN_200b_rom | F45: C67_HUVEC | G45: OK | H45: 3.37564 | I45: 1.33555 | J45: 1.337727066 | K45: -1.337727066 | L45: -1.33772 | M45: 1.47514 | N45: 0.140174 | O45: 0.440093 | P45: no | Q45: CDKN3 | R45: CDKN3 | S45: CDKN3 | T45: chr14:54863672-54886934 | U45: Mim200b_rom | V45: C67_HUVEC | W45: OK | X45: 0.673052 | Y45: 1.40359 | Z45: -1.060331697 | AA45: 1.060331697 | AB45: 1.06033 | AC45: -0.963324 | AD45: 0.335385 | AE45: 0.665685 | AF45: no
A46: RNF208 | B46: RNF208 | C46: RNF208 | D46: chr9:140114698-140115775 | E46: IN_200b_rom | F46: C67_HUVEC | G46: OK | H46: 2.90107 | I46: 1.16043 | J46: 1.321925608 | K46: -1.321925608 | L46: -1.32192 | M46: 1.24532 | N46: 0.213014 | O46: 0.528997 | P46: no | Q46: RNF208 | R46: RNF208 | S46: RNF208 | T46: chr9:140114698-140115775 | U46: Mim200b_rom | V46: C67_HUVEC | W46: OK | X46: 0.974196 | Y46: 1.2231 | Z46: -0.328258398 | AA46: 0.328258398 | AB46: 0.32826 | AC46: -0.265556 | AD46: 0.790582 | AE46: 0.925685 | AF46: no
A47: CPNE2 | B47: CPNE2 | C47: CPNE2 | D47: chr16:57126454-57181878 | E47: IN_200b_rom | F47: C67_HUVEC | G47: OK | H47: 35.7603 | I47: 14.4874 | J47: 1.303560137 | K47: -1.303560137 | L47: -1.30356 | M47: 2.30234 | N47: 0.0213162 | O47: 0.167246 | P47: no | Q47: CPNE2 | R47: CPNE2 | S47: CPNE2 | T47: chr16:57126454-57181878 | U47: Mim200b_rom | V47: C67_HUVEC | W47: OK | X47: 10.4085 | Y47: 15.2527 | Z47: -0.5513024755 | AA47: 0.5513024755 | AB47: 0.551309 | AC47: -0.927445 | AD47: 0.353696 | AE47: 0.679965 | AF47: no
A48: VWCE | B48: VWCE | C48: VWCE | D48: chr11:61025757-61062788 | E48: IN_200b_rom | F48: C67_HUVEC | G48: OK | H48: 1.9528 | I48: 0.792671 | J48: 1.300750099 | K48: -1.300750099 | L48: -1.30075 | M48: 1.55451 | N48: 0.120062 | O48: 0.409267 | P48: no | Q48: VWCE | R48: VWCE | S48: VWCE | T48: chr11:61025757-61062788 | U48: Mim200b_rom | V48: C67_HUVEC | W48: OK | X48: 0.643957 | Y48: 0.834159 | Z48: -0.3733580475 | AA48: 0.3733580475 | AB48: 0.373358 | AC48: -0.378342 | AD48: 0.705177 | AE48: 0.889354 | AF48: no
A49: ABI3 | B49: ABI3 | C49: ABI3 | D49: chr17:47283595-47300587 | E49: IN_200b_rom | F49: C67_HUVEC | G49: OK | H49: 50.5369 | I49: 20.8708 | J49: 1.275851269 | K49: -1.275851269 | L49: -1.27585 | M49: 2.25296 | N49: 0.0242615 | O49: 0.178455 | P49: no | Q49: ABI3 | R49: ABI3 | S49: ABI3 | T49: chr17:47283595-47300587 | U49: Mim200b_rom | V49: C67_HUVEC | W49: OK | X49: 10.8022 | Y49: 21.9768 | Z49: -1.024656169 | AA49: 1.024656169 | AB49: 1.02466 | AC49: -1.8152 | AD49: 0.0694924 | AE49: 0.318342 | AF49: no
A50: CLEC14A | B50: CLEC14A | C50: CLEC14A | D50: chr14:38723318-38725574 | E50: IN_200b_rom | F50: C67_HUVEC | G50: OK | H50: 291.887 | I50: 120.996 | J50: 1.270450604 | K50: -1.270450604 | L50: -1.27046 | M50: 1.14892 | N50: 0.250588 | O50: 0.567618 | P50: no | Q50: CLEC14A | R50: CLEC14A | S50: CLEC14A | T50: chr14:38723318-38725574 | U50: Mim200b_rom | V50: C67_HUVEC | W50: OK | X50: 58.6141 | Y50: 127.419 | Z50: -1.120260759 | AA50: 1.120260759 | AB50: 1.12027 | AC50: -1.50204 | AD50: 0.133088 | AE50: 0.445103 | AF50: no
A51: PIK3C2B | B51: PIK3C2B | C51: PIK3C2B | D51: chr1:204391757-204459474 | E51: IN_200b_rom | F51: C67_HUVEC | G51: OK | H51: 3.79674 | I51: 1.58456 | J51: 1.260678918 | K51: -1.260678918 | L51: -1.26068 | M51: 2.09797 | N51: 0.0359076 | O51: 0.221279 | P51: no | Q51: PIK3C2B | R51: PIK3C2B | S51: PIK3C2B | T51: chr1:204391757-204459474 | U51: Mim200b_rom | V51: C67_HUVEC | W51: OK | X51: 0.791095 | Y51: 1.66785 | Z51: -1.076066685 | AA51: 1.076066685 | AB51: 1.07607 | AC51: -1.47223 | AD51: 0.140958 | AE51: 0.458539 | AF51: no
A52: NTHL1 | B52: NTHL1 | C52: NTHL1 | D52: chr16:2089815-2097867 | E52: IN_200b_rom | F52: C67_HUVEC | G52: OK | H52: 20.3122 | I52: 8.4921 | J52: 1.25815324 | K52: -1.25815324 | L52: -1.25815 | M52: 2.06971 | N52: 0.0384799 | O52: 0.229973 | P52: no | Q52: NTHL1 | R52: NTHL1 | S52: NTHL1 | T52: chr16:2089815-2097867 | U52: Mim200b_rom | V52: C67_HUVEC | W52: OK | X52: 6.72175 | Y52: 8.95657 | Z52: -0.4141094589 | AA52: 0.4141094589 | AB52: 0.414108 | AC52: -0.57645 | AD52: 0.564311 | AE52: 0.821975 | AF52: no
A53: MFI2 | B53: MFI2 | C53: MFI2 | D53: chr3:196728611-196756687 | E53: IN_200b_rom | F53: C67_HUVEC | G53: OK | H53: 2.7574 | I53: 1.18552 | J53: 1.217788564 | K53: -1.217788564 | L53: -1.2178 | M53: 1.72342 | N53: 0.084813 | O53: 0.346857 | P53: no | Q53: MFI2 | R53: MFI2 | S53: MFI2 | T53: chr3:196728611-196756687 | U53: Mim200b_rom | V53: C67_HUVEC | W53: OK | X53: 0.741774 | Y53: 1.24783 | Z53: -0.7503697941 | AA53: 0.7503697941 | AB53: 0.75037 | AC53: -0.85256 | AD53: 0.393903 | AE53: 0.711855 | AF53: no
A54: GIMAP4 | B54: GIMAP4 | C54: GIMAP4 | D54: chr7:150264457-150271041 | E54: IN_200b_rom | F54: C67_HUVEC | G54: OK | H54: 73.0087 | I54: 31.5522 | J54: 1.21032779 | K54: -1.21032779 | L54: -1.21032 | M54: 1.91257 | N54: 0.0558034 | O54: 0.28056 | P54: no | Q54: GIMAP4 | R54: GIMAP4 | S54: GIMAP4 | T54: chr7:150264457-150271041 | U54: Mim200b_rom | V54: C67_HUVEC | W54: OK | X54: 25.2648 | Y54: 33.2409 | Z54: -0.3958306843 | AA54: 0.3958306843 | AB54: 0.395829 | AC54: -0.658498 | AD54: 0.510218 | AE54: 0.789349 | AF54: no
A55: MGAT4A | B55: MGAT4A | C55: MGAT4A | D55: chr2:99235568-99347589 | E55: IN_200b_rom | F55: C67_HUVEC | G55: OK | H55: 15.6578 | I55: 6.82128 | J55: 1.198767132 | K55: -1.198767132 | L55: -1.19877 | M55: 2.43413 | N55: 0.0149275 | O55: 0.136694 | P55: no | Q55: MGAT4A | R55: MGAT4A | S55: MGAT4A | T55: chr2:99235568-99347589 | U55: Mim200b_rom | V55: C67_HUVEC | W55: OK | X55: 5.51065 | Y55: 7.18198 | Z55: -0.3821591358 | AA55: 0.3821591358 | AB55: 0.38216 | AC55: -0.708882 | AD55: 0.478398 | AE55: 0.768513 | AF55: no
A56: IL17D | B56: IL17D | C56: IL17D | D56: chr13:21277481-21297237 | E56: IN_200b_rom | F56: C67_HUVEC | G56: OK | H56: 6.26192 | I56: 2.7379 | J56: 1.193535323 | K56: -1.193535323 | L56: -1.19354 | M56: 1.56955 | N56: 0.116519 | O56: 0.402979 | P56: no | Q56: IL17D | R56: IL17D | S56: IL17D | T56: chr13:21277481-21297237 | U56: Mim200b_rom | V56: C67_HUVEC | W56: OK | X56: 2.0896 | Y56: 2.88143 | Z56: -0.4635581701 | AA56: 0.4635581701 | AB56: 0.463555 | AC56: -0.514487 | AD56: 0.606912 | AE56: 0.843722 | AF56: no
A57: LHFP | B57: LHFP | C57: LHFP | D57: chr13:39917028-40177356 | E57: IN_200b_rom | F57: C67_HUVEC | G57: OK | H57: 20.8674 | I57: 9.16045 | J57: 1.187760481 | K57: -1.187760481 | L57: -1.18776 | M57: 2.11579 | N57: 0.034363 | O57: 0.215652 | P57: no | Q57: LHFP | R57: LHFP | S57: LHFP | T57: chr13:39917028-40177356 | U57: Mim200b_rom | V57: C67_HUVEC | W57: OK | X57: 3.41076 | Y57: 9.6492 | Z57: -1.500316093 | AA57: 1.500316093 | AB57: 1.50032 | AC57: -2.24403 | AD57: 0.0248306 | AE57: 0.181126 | AF57: no
A58: NTM | B58: NTM | C58: NTM | D58: chr11:131240370-132206716 | E58: IN_200b_rom | F58: C67_HUVEC | G58: OK | H58: 2.55309 | I58: 1.13814 | J58: 1.165566364 | K58: -1.165566364 | L58: -1.16557 | M58: 1.58806 | N58: 0.112273 | O58: 0.396477 | P58: no | Q58: NTM | R58: NTM | S58: NTM | T58: chr11:131240370-132206716 | U58: Mim200b_rom | V58: C67_HUVEC | W58: OK | X58: 0.294856 | Y58: 1.1986 | Z58: -2.023267822 | AA58: 2.023267822 | AB58: 2.02327 | AC58: -2.03354 | AD58: 0.0419985 | AE58: 0.245249 | AF58: no
A59: MYRIP | B59: MYRIP | C59: MYRIP | D59: chr3:39851302-40353915 | E59: IN_200b_rom | F59: C67_HUVEC | G59: OK | H59: 2.60819 | I59: 1.16501 | J59: 1.162706632 | K59: -1.162706632 | L59: -1.1627 | M59: 1.65553 | N59: 0.0978171 | O59: 0.372729 | P59: no | Q59: MYRIP | R59: MYRIP | S59: MYRIP | T59: chr3:39851302-40353915 | U59: Mim200b_rom | V59: C67_HUVEC | W59: OK | X59: 0.8284 | Y59: 1.2273 | Z59: -0.5670884844 | AA59: 0.5670884844 | AB59: 0.567087 | AC59: -0.676562 | AD59: 0.498684 | AE59: 0.781563 | AF59: no
A60: ST6GALNAC3 | B60: ST6GALNAC3 | C60: ST6GALNAC3 | D60: chr1:76540388-77096669 | E60: IN_200b_rom | F60: C67_HUVEC | G60: OK | H60: 7.70391 | I60: 3.45218 | J60: 1.158083159 | K60: -1.158083159 | L60: -1.15808 | M60: 1.99105 | N60: 0.0464752 | O60: 0.254138 | P60: no | Q60: ST6GALNAC3 | R60: ST6GALNAC3 | S60: ST6GALNAC3 | T60: chr1:76540388-77096669 | U60: Mim200b_rom | V60: C67_HUVEC | W60: OK | X60: 1.99888 | Y60: 3.63795 | Z60: -0.8639338502 | AA60: 0.8639338502 | AB60: 0.863934 | AC60: -1.23517 | AD60: 0.216766 | AE60: 0.552382 | AF60: no
A61: TENC1 | B61: TENC1 | C61: TENC1 | D61: chr12:53436972-53473204 | E61: IN_200b_rom | F61: C67_HUVEC | G61: OK | H61: 22.8564 | I61: 10.4417 | J61: 1.130241575 | K61: -1.130241575 | L61: -1.13024 | M61: 2.53215 | N61: 0.0113366 | O61: 0.116152 | P61: no | Q61: TENC1 | R61: TENC1 | S61: TENC1 | T61: chr12:53436972-53473204 | U61: Mim200b_rom | V61: C67_HUVEC | W61: OK | X61: 8.89752 | Y61: 10.9886 | Z61: -0.304532416 | AA61: 0.304532416 | AB61: 0.30453 | AC61: -0.800273 | AD61: 0.423552 | AE61: 0.732525 | AF61: no
A62: FTL | B62: FTL | C62: FTL | D62: chr19:49468565-49470136 | E62: IN_200b_rom | F62: C67_HUVEC | G62: OK | H62: 6502.45 | I62: 2987.35 | J62: 1.122117126 | K62: -1.122117126 | L62: -1.12211 | M62: 0.206547 | N62: 0.836364 | O62: 0.940337 | P62: no | Q62: FTL | R62: FTL | S62: FTL | T62: chr19:49468565-49470136 | U62: Mim200b_rom | V62: C67_HUVEC | W62: OK | X62: 2033.83 | Y62: 3147.59 | Z62: -0.630048535 | AA62: 0.630048535 | AB62: 0.630048 | AC62: -0.286802 | AD62: 0.774264 | AE62: 0.918259 | AF62: no
A63: C7orf61 | B63: C7orf61 | C63: C7orf61 | D63: chr7:100054237-100061894 | E63: IN_200b_rom | F63: C67_HUVEC | G63: OK | H63: 5.08446 | I63: 2.3379 | J63: 1.120881337 | K63: -1.120881337 | L63: -1.12088 | M63: 1.27143 | N63: 0.203574 | O63: 0.519862 | P63: no | Q63: C7orf61 | R63: C7orf61 | S63: C7orf61 | T63: chr7:100054237-100061894 | U63: Mim200b_rom | V63: C67_HUVEC | W63: OK | X63: 0.321355 | Y63: 2.46614 | Z63: -2.940014878 | AA63: 2.940014878 | AB63: 2.94001 | AC63: -2.32021 | AD63: 0.0203297 | AE63: 0.16179 | AF63: no
A64: RFTN1 | B64: RFTN1 | C64: RFTN1 | D64: chr3:16357351-16555222 | E64: IN_200b_rom | F64: C67_HUVEC | G64: OK | H64: 15.9825 | I64: 7.45576 | J64: 1.100065768 | K64: -1.100065768 | L64: -1.10007 | M64: 1.97063 | N64: 0.0487665 | O64: 0.261156 | P64: no | Q64: RFTN1 | R64: RFTN1 | S64: RFTN1 | T64: chr3:16357351-16555222 | U64: Mim200b_rom | V64: C67_HUVEC | W64: OK | X64: 5.91737 | Y64: 7.85079 | Z64: -0.4078817287 | AA64: 0.4078817287 | AB64: 0.407883 | AC64: -0.662656 | AD64: 0.507551 | AE64: 0.787949 | AF64: no
A65: PPAP2B | B65: PPAP2B | C65: PPAP2B | D65: chr1:56960418-57045257 | E65: IN_200b_rom | F65: C67_HUVEC | G65: OK | H65: 57.9315 | I65: 27.2984 | J65: 1.085531626 | K65: -1.085531626 | L65: -1.08553 | M65: 1.61085 | N65: 0.107211 | O65: 0.387414 | P65: no | Q65: PPAP2B | R65: PPAP2B | S65: PPAP2B | T65: chr1:56960418-57045257 | U65: Mim200b_rom | V65: C67_HUVEC | W65: OK | X65: 4.71414 | Y65: 28.7361 | Z65: -2.607797766 | AA65: 2.607797766 | AB65: 2.6078 | AC65: -4.34454 | AD65: 1.39568e-05 | AE65: 0.000882057 | AF65: yes
A66: MPZ | B66: MPZ | C66: MPZ | D66: chr1:161274524-161279762 | E66: IN_200b_rom | F66: C67_HUVEC | G66: OK | H66: 1.94615 | I66: 0.920964 | J66: =IF(G66="NOTEST","",IF(H66=0,-LOG(I66,2),IF(I66=0,LOG(H66,2),LOG((H66/I66),2)))) -> 1.079406242 | K66: =IF(G66="NOTEST","",IF(H66=0,LOG(I66,2),IF(I66=0,-LOG(H66,2),LOG((I66/H66),2)))) -> -1.079406242 | L66: -1.0794 | M66: 1.12361 | N66: 0.261179 | O66: 0.576147 | P66: no | Q66: MPZ | R66: MPZ | S66: MPZ | T66: chr1:161274524-161279762 | U66: Mim200b_rom | V66: C67_HUVEC | W66: OK | X66: 0.647612 | Y66: 0.970015 | Z66: =IF(W66="NOTEST","",IF(X66=0,-LOG(Y66,2),IF(Y66=0,LOG(X66,2),LOG((X66/Y66),2)))) -> -0.5828773384 | AA66: =IF(W66="NOTEST","",IF(X66=0,LOG(Y66,2),IF(Y66=0,-LOG(X66,2),LOG((Y66/X66),2)))) -> 0.5828773384 | AB66: 0.582878 | AC66: -0.511936 | AD66: 0.608696 | AE66: 0.844213 | AF66: no
A67: PDGFD | B67: PDGFD | C67: PDGFD | D67: chr11:103777913-104035027 | E67: IN_200b_rom | F67: C67_HUVEC | G67: OK | H67: 2.31555 | I67: 1.09612 | J67: 1.078949161 | K67: -1.078949161 | L67: -1.07895 | M67: 1.49565 | N67: 0.134744 | O67: 0.431926 | P67: no | Q67: PDGFD | R67: PDGFD | S67: PDGFD | T67: chr11:103777913-104035027 | U67: Mim200b_rom | V67: C67_HUVEC | W67: OK | X67: 0.526516 | Y67: 1.15417 | Z67: -1.132306459 | AA67: 1.132306459 | AB67: 1.1323 | AC67: -1.25623 | AD67: 0.209034 | AE67: 0.542906 | AF67: no
A68: KIAA0101 | B68: KIAA0101 | C68: KIAA0101 | D68: chr15:64657210-64673702 | E68: IN_200b_rom | F68: C67_HUVEC | G68: OK | H68: 2.21649 | I68: 1.05196 | J68: 1.075197005 | K68: -1.075197005 | L68: -1.0752 | M68: 1.05194 | N68: 0.292829 | O68: 0.607694 | P68: no | Q68: KIAA0101 | R68: KIAA0101 | S68: KIAA0101 | T68: chr15:64657210-64673702 | U68: Mim200b_rom | V68: C67_HUVEC | W68: OK | X68: 0.813993 | Y68: 1.10851 | Z68: -0.4455334919 | AA68: 0.4455334919 | AB68: 0.445536 | AC68: -0.370899 | AD68: 0.710713 | AE68: 0.891704 | AF68: no
A69: AMIGO2 | B69: AMIGO2 | C69: AMIGO2 | D69: chr12:47469489-47473734 | E69: IN_200b_rom | F69: C67_HUVEC | G69: OK | H69: 8.37601 | I69: 3.9996 | J69: 1.066407441 | K69: -1.066407441 | L69: -1.06641 | M69: 1.86725 | N69: 0.061867 | O69: 0.294486 | P69: no | Q69: AMIGO2 | R69: AMIGO2 | S69: AMIGO2 | T69: chr12:47469489-47473734 | U69: Mim200b_rom | V69: C67_HUVEC | W69: OK | X69: 2.70865 | Y69: 4.21172 | Z69: -0.6368355407 | AA69: 0.6368355407 | AB69: 0.636836 | AC69: -0.949463 | AD69: 0.342385 | AE69: 0.672748 | AF69: no
A70: MTUS1 | B70: MTUS1 | C70: MTUS1 | D70: chr8:17501302-17658426 | E70: IN_200b_rom | F70: C67_HUVEC | G70: OK | H70: 55.4117 | I70: 26.5141 | J70: 1.063430851 | K70: -1.063430851 | L70: -1.06343 | M70: 1.50516 | N70: 0.132283 | O70: 0.428729 | P70: no | Q70: MTUS1 | R70: MTUS1 | S70: MTUS1 | T70: chr8:17501302-17658426 | U70: Mim200b_rom | V70: C67_HUVEC | W70: OK | X70: 9.70597 | Y70: 27.9301 | Z70: -1.524876433 | AA70: 1.524876433 | AB70: 1.52488 | AC70: -2.74146 | AD70: 0.0061167 | AE70: 0.0762517 | AF70: no
A71: C3orf21 | B71: C3orf21 | C71: C3orf21 | D71: chr3:194789012-194991895 | E71: IN_200b_rom | F71: C67_HUVEC | G71: OK | H71: 24.8733 | I71: 12.0477 | J71: 1.045840175 | K71: -1.045840175 | L71: -1.04584 | M71: 1.848 | N71: 0.064603 | O71: 0.301044 | P71: no | Q71: C3orf21 | R71: C3orf21 | S71: C3orf21 | T71: chr3:194789012-194991895 | U71: Mim200b_rom | V71: C67_HUVEC | W71: OK | X71: 7.89766 | Y71: 12.6781 | Z71: -0.6828413874 | AA71: 0.6828413874 | AB71: 0.682838 | AC71: -1.14282 | AD71: 0.253113 | AE71: 0.589752 | AF71: no
A72: ABCA2 | B72: ABCA2 | C72: ABCA2 | D72: chr9:139901685-139931234 | E72: IN_200b_rom | F72: C67_HUVEC | G72: OK | H72: 6.52838 | I72: 3.17265 | J72: 1.04103666 | K72: -1.04103666 | L72: -1.04104 | M72: 2.1211 | N72: 0.0339135 | O72: 0.214558 | P72: no | Q72: ABCA2 | R72: ABCA2 | S72: ABCA2 | T72: chr9:139901685-139931234 | U72: Mim200b_rom | V72: C67_HUVEC | W72: FAIL | X72: 2.57569 | Y72: 3.33782 | Z72: -0.3739471892 | AA72: 0.3739471892 | AB72: 0 | AC72: 0 | AD72: 1 | AE72: 1 | AF72: no
A73: ALDOC | B73: ALDOC | C73: ALDOC | D73: chr17:26900132-26903951 | E73: IN_200b_rom | F73: C67_HUVEC | G73: OK | H73: 5.29695 | I73: 2.57571 | J73: 1.040191721 | K73: -1.040191721 | L73: -1.04019 | M73: 1.38505 | N73: 0.166038 | O73: 0.474089 | P73: no | Q73: ALDOC | R73: ALDOC | S73: ALDOC | T73: chr17:26900132-26903951 | U73: Mim200b_rom | V73: C67_HUVEC | W73: OK | X73: 2.03699 | Y73: 2.70934 | Z73: -0.4115025535 | AA73: 0.4115025535 | AB73: 0.4115 | AC73: -0.463628 | AD73: 0.642915 | AE73: 0.860791 | AF73: no
A74: ARHGAP4 | B74: ARHGAP4 | C74: ARHGAP4 | D74: chrX:153172829-153191714 | E74: IN_200b_rom | F74: C67_HUVEC | G74: OK | H74: 11.5497 | I74: 5.62421 | J74: 1.03813301 | K74: -1.03813301 | L74: -1.03814 | M74: 1.86391 | N74: 0.0623349 | O74: 0.295079 | P74: no | Q74: ARHGAP4 | R74: ARHGAP4 | S74: ARHGAP4 | T74: chrX:153172829-153191714 | U74: Mim200b_rom | V74: C67_HUVEC | W74: OK | X74: 4.68851 | Y74: 5.92124 | Z74: -0.3367698206 | AA74: 0.3367698206 | AB74: 0.336769 | AC74: -0.553761 | AD74: 0.579742 | AE74: 0.829143 | AF74: no
A75: ASMTL | B75: ASMTL | C75: ASMTL | D75: chrY:1469423-1522655 | E75: IN_200b_rom | F75: C67_HUVEC | G75: OK | H75: 16.6975 | I75: 8.14009 | J75: 1.036515464 | K75: -1.036515464 | L75: -1.03651 | M75: 2.63584 | N75: 0.00839298 | O75: 0.0970957 | P75: no | Q75: ASMTL-AS1 | R75: ASMTL-AS1 | S75: ASMTL-AS1 | T75: chrY:1469423-1522655 | U75: Mim200b_rom | V75: C67_HUVEC | W75: OK | X75: 3.19797 | Y75: 5.47109 | Z75: -0.7746718834 | AA75: 0.7746718834 | AB75: 0.774673 | AC75: -1.28177 | AD75: 0.199924 | AE75: 0.533674 | AF75: no
A76: PCDH12 | B76: PCDH12 | C76: PCDH12 | D76: chr5:141324529-141338627 | E76: IN_200b_rom | F76: C67_HUVEC | G76: OK | H76: 6.27502 | I76: 3.07161 | J76: 1.030625007 | K76: -1.030625007 | L76: -1.03063 | M76: 1.80995 | N76: 0.0703042 | O76: 0.316181 | P76: no | Q76: PCDH12 | R76: PCDH12 | S76: PCDH12 | T76: chr5:141324529-141338627 | U76: Mim200b_rom | V76: C67_HUVEC | W76: OK | X76: 1.09847 | Y76: 3.23295 | Z76: -1.557355726 | AA76: 1.557355726 | AB76: 1.55736 | AC76: -2.2538 | AD76: 0.0242086 | AE76: 0.178377 | AF76: no
A77: LRRC6 | B77: LRRC6 | C77: LRRC6 | D77: chr8:133584446-133687813 | E77: IN_200b_rom | F77: C67_HUVEC | G77: OK | H77: 1.76125 | I77: 0.873539 | J77: 1.011655686 | K77: -1.011655686 | L77: -1.01166 | M77: 1.01897 | N77: 0.308219 | O77: 0.622599 | P77: no | Q77: LRRC6 | R77: LRRC6 | S77: LRRC6 | T77: chr8:133584446-133687813 | U77: Mim200b_rom | V77: C67_HUVEC | W77: OK | X77: 0.767153 | Y77: 0.920372 | Z77: -0.2627027582 | AA77: 0.2627027582 | AB77: 0.262701 | AC77: -0.230536 | AD77: 0.817675 | AE77: 0.936475 | AF77: no
A78: ATOH8 | B78: ATOH8 | C78: ATOH8 | D78: chr2:85980908-86018506 | E78: IN_200b_rom | F78: C67_HUVEC | G78: OK | H78: 3.00551 | I78: 1.49475 | J78: 1.007705609 | K78: -1.007705609 | L78: -1.00771 | M78: 1.58174 | N78: 0.11371 | O78: 0.399138 | P78: no | Q78: ATOH8 | R78: ATOH8 | S78: ATOH8 | T78: chr2:85980908-86018506 | U78: Mim200b_rom | V78: C67_HUVEC | W78: OK | X78: 0.661088 | Y78: 1.57302 | Z78: -1.250622781 | AA78: 1.250622781 | AB78: 1.25062 | AC78: -1.57481 | AD78: 0.115301 | AE78: 0.415272 | AF78: no
A79: CCDC85B | B79: CCDC85B | C79: CCDC85B | D79: chr11:65657874-65659106 | E79: IN_200b_rom | F79: C67_HUVEC | G79: OK | H79: 318.096 | I79: 158.486 | J79: 1.005106826 | K79: -1.005106826 | L79: -1.00511 | M79: 1.27283 | N79: 0.203078 | O79: 0.51912 | P79: no | Q79: CCDC85B | R79: CCDC85B | S79: CCDC85B | T79: chr11:65657874-65659106 | U79: Mim200b_rom | V79: C67_HUVEC | W79: OK | X79: 114.745 | Y79: 166.938 | Z79: -0.5408811022 | AA79: 0.5408811022 | AB79: 0.540886 | AC79: -0.782346 | AD79: 0.434011 | AE79: 0.738942 | AF79: no
A80: STK32B | B80: STK32B | C80: STK32B | D80: chr4:5053526-5502725 | E80: IN_200b_rom | F80: C67_HUVEC | G80: OK | H80: 3.11152 | I80: 1.55489 | J80: 1.000806998 | K80: -1.000806998 | L80: -1.0008 | M80: 1.35832 | N80: 0.174362 | O80: 0.485718 | P80: no | Q80: STK32B | R80: STK32B | S80: STK32B | T80: chr4:5053526-5502725 | U80: Mim200b_rom | V80: C67_HUVEC | W80: OK | X80: 1.1086 | Y80: 1.63708 | Z80: -0.5623859117 | AA80: 0.5623859117 | AB80: 0.562384 | AC80: -0.642968 | AD80: 0.520245 | AE80: 0.79565 | AF80: no
A81: CDKN2C | B81: CDKN2C | C81: CDKN2C | D81: chr1:51434366-51440309 | E81: IN_200b_rom | F81: C67_HUVEC | G81: OK | H81: 3.83509 | I81: 1.92426 | J81: 0.9949566899 | K81: -0.9949566899 | L81: -0.994959 | M81: 1.50215 | N81: 0.133059 | O81: 0.429313 | P81: no | Q81: CDKN2C | R81: CDKN2C | S81: CDKN2C | T81: chr1:51434366-51440309 | U81: Mim200b_rom | V81: C67_HUVEC | W81: OK | X81: 0.62944 | Y81: 2.02713 | Z81: -1.687297844 | AA81: 1.687297844 | AB81: 1.6873 | AC81: -1.90784 | AD81: 0.0564113 | AE81: 0.287096 | AF81: no
A82: GPR173 | B82: GPR173 | C82: GPR173 | D82: chrX:53078505-53109796 | E82: IN_200b_rom | F82: C67_HUVEC | G82: OK | H82: 3.86069 | I82: 1.94129 | J82: 0.9918430641 | K82: -0.9918430641 | L82: -0.991844 | M82: 1.54575 | N82: 0.122166 | O82: 0.412346 | P82: no | Q82: GPR173 | R82: GPR173 | S82: GPR173 | T82: chrX:53078505-53109796 | U82: Mim200b_rom | V82: C67_HUVEC | W82: OK | X82: 1.65533 | Y82: 2.04304 | Z82: -0.3035985947 | AA82: 0.3035985947 | AB82: 0.303598 | AC82: -0.406685 | AD82: 0.684239 | AE82: 0.881265 | AF82: no
A83: RASSF4 | B83: RASSF4 | C83: RASSF4 | D83: chr10:45455218-45490172 | E83: IN_200b_rom | F83: C67_HUVEC | G83: OK | H83: 2.61838 | I83: 1.3221 | J83: 0.9858431853 | K83: -0.9858431853 | L83: -0.985844 | M83: 1.20781 | N83: 0.227121 | O83: 0.545469 | P83: no | Q83: RASSF4 | R83: RASSF4 | S83: RASSF4 | T83: chr10:45455218-45490172 | U83: Mim200b_rom | V83: C67_HUVEC | W83: OK | X83: 0.757383 | Y83: 1.39163 | Z83: -0.8776807409 | AA83: 0.8776807409 | AB83: 0.877683 | AC83: -0.887872 | AD83: 0.37461 | AE83: 0.696832 | AF83: no
A84: RASIP1 | B84: RASIP1 | C84: RASIP1 | D84: chr19:49223841-49243970 | E84: IN_200b_rom | F84: C67_HUVEC | G84: OK | H84: 48.1274 | I84: 24.5141 | J84: 0.9732466902 | K84: -0.9732466902 | L84: -0.973247 | M84: 1.5797 | N84: 0.114175 | O84: 0.400007 | P84: no | Q84: RASIP1 | R84: RASIP1 | S84: RASIP1 | T84: chr19:49223841-49243970 | U84: Mim200b_rom | V84: C67_HUVEC | W84: OK | X84: 10.3256 | Y84: 25.7865 | Z84: -1.320390353 | AA84: 1.320390353 | AB84: 1.32039 | AC84: -2.25431 | AD84: 0.0241768 | AE84: 0.178246 | AF84: no
A85: C21orf63 | B85: C21orf63 | C85: C21orf63 | D85: chr21:33784751-33887697 | E85: IN_200b_rom | F85: C67_HUVEC | G85: OK | H85: 33.7949 | I85: 17.4245 | J85: 0.9556882871 | K85: -0.9556882871 | L85: -0.955684 | M85: 1.71482 | N85: 0.086379 | O85: 0.350313 | P85: no | Q85: C21orf63 | R85: C21orf63 | S85: C21orf63 | T85: chr21:33784751-33887697 | U85: Mim200b_rom | V85: C67_HUVEC | W85: OK | X85: 14.5869 | Y85: 18.3478 | Z85: -0.3309337715 | AA85: 0.3309337715 | AB85: 0.330937 | AC85: -0.555067 | AD85: 0.578849 | AE85: 0.829003 | AF85: no
A86: MIR3661 | B86: MIR3661 | C86: MIR3661 | D86: chr5:133532147-133561950 | E86: IN_200b_rom | F86: C67_HUVEC | G86: OK | H86: 1.91034 | I86: 0 | J86: 0.9338294302 | K86: -0.9338294302 | L86: -1.79769e+308 | M86: -1.79769e+308 | N86: 0.110336 | O86: 0.392792 | P86: no | Q86: MIR3661 | R86: MIR3661 | S86: MIR3661 | T86: chr5:133532147-133561950 | U86: Mim200b_rom | V86: C67_HUVEC | W86: OK | X86: 0.605203 | Y86: 0 | Z86: -0.7245089559 | AA86: 0.7245089559 | AB86: -1.79769e+308 | AC86: -1.79769e+308 | AD86: 0.158655 | AE86: 0.481272 | AF86: no
A87: KCNMA1 | B87: KCNMA1 | C87: KCNMA1 | D87: chr10:78629358-79397577 | E87: IN_200b_rom | F87: C67_HUVEC | G87: OK | H87: 4.07881 | I87: 2.14241 | J87: 0.928913705 | K87: -0.928913705 | L87: -0.928914 | M87: 1.76638 | N87: 0.0773318 | O87: 0.332856 | P87: no | Q87: KCNMA1 | R87: KCNMA1 | S87: KCNMA1 | T87: chr10:78629358-79397577 | U87: Mim200b_rom | V87: C67_HUVEC | W87: OK | X87: 0.829054 | Y87: 2.2549 | Z87: -1.443525475 | AA87: 1.443525475 | AB87: 1.44353 | AC87: -2.32584 | AD87: 0.0200273 | AE87: 0.160985 | AF87: no
A88: ACVRL1 | B88: ACVRL1 | C88: ACVRL1 | D88: chr12:52301201-52317145 | E88: IN_200b_rom | F88: C67_HUVEC | G88: OK | H88: 217.664 | I88: 114.373 | J88: 0.9283563005 | K88: -0.9283563005 | L88: -0.928353 | M88: 0.996688 | N88: 0.318916 | O88: 0.63337 | P88: no | Q88: ACVRL1 | R88: ACVRL1 | S88: ACVRL1 | T88: chr12:52301201-52317145 | U88: Mim200b_rom | V88: C67_HUVEC | W88: OK | X88: 67.072 | Y88: 120.421 | Z88: -0.8443044759 | AA88: 0.8443044759 | AB88: 0.844309 | AC88: -1.45665 | AD88: 0.145214 | AE88: 0.464424 | AF88: no
A89: IL27RA | B89: IL27RA | C89: IL27RA | D89: chr19:14142261-14164026 | E89: IN_200b_rom | F89: C67_HUVEC | G89: OK | H89: 3.61088 | I89: 1.9106 | J89: 0.9183247064 | K89: -0.9183247064 | L89: -0.918323 | M89: 1.34427 | N89: 0.178863 | O89: 0.491305 | P89: no | Q89: IL27RA | R89: IL27RA | S89: IL27RA | T89: chr19:14142261-14164026 | U89: Mim200b_rom | V89: C67_HUVEC | W89: OK | X89: 1.43489 | Y89: 2.01222 | Z89: -0.4878479037 | AA89: 0.4878479037 | AB89: 0.487851 | AC89: -0.609531 | AD89: 0.542172 | AE89: 0.810356 | AF89: no
A90: HS3ST1 | B90: HS3ST1 | C90: HS3ST1 | D90: chr4:11399987-11430537 | E90: IN_200b_rom | F90: C67_HUVEC | G90: OK | H90: 4.38008 | I90: 2.31772 | J90: 0.918250933 | K90: -0.918250933 | L90: -0.918253 | M90: 1.14335 | N90: 0.252894 | O90: 0.569891 | P90: no | Q90: HS3ST1 | R90: HS3ST1 | S90: HS3ST1 | T90: chr4:11399987-11430537 | U90: Mim200b_rom | V90: C67_HUVEC | W90: OK | X90: 1.89367 | Y90: 2.43954 | Z90: -0.3654241969 | AA90: 0.3654241969 | AB90: 0.365421 | AC90: -0.391495 | AD90: 0.695432 | AE90: 0.886487 | AF90: no
A91: FAHD2B | B91: FAHD2B | C91: FAHD2B | D91: chr2:97749322-97760582 | E91: IN_200b_rom | F91: C67_HUVEC | G91: OK | H91: 8.49798 | I91: 4.50017 | J91: 0.917140446 | K91: -0.917140446 | L91: -0.917138 | M91: 1.34709 | N91: 0.177952 | O91: 0.490132 | P91: no | Q91: FAHD2B | R91: FAHD2B | S91: FAHD2B | T91: chr2:97749322-97760582 | U91: Mim200b_rom | V91: C67_HUVEC | W91: OK | X91: 3.89348 | Y91: 4.74721 | Z91: -0.2860196555 | AA91: 0.2860196555 | AB91: 0.286018 | AC91: -0.35977 | AD91: 0.719019 | AE91: 0.896428 | AF91: no
A92: ARHGAP22 | B92: ARHGAP22 | C92: ARHGAP22 | D92: chr10:49654078-49813138 | E92: IN_200b_rom | F92: C67_HUVEC | G92: OK | H92: 24.4234 | I92: 13.0628 | J92: 0.9027998825 | K92: -0.9027998825 | L92: -0.902804 | M92: 1.61558 | N92: 0.106186 | O92: 0.385745 | P92: no | Q92: ARHGAP22 | R92: ARHGAP22 | S92: ARHGAP22 | T92: chr10:49654078-49813138 | U92: Mim200b_rom | V92: C67_HUVEC | W92: OK | X92: 6.79747 | Y92: 13.7522 | Z92: -1.016592647 | AA92: 1.016592647 | AB92: 1.01659 | AC92: -1.70752 | AD92: 0.0877248 | AE92: 0.35901 | AF92: no
A93: MYOF | B93: MYOF | C93: MYOF | D93: chr10:95066185-95242074 | E93: IN_200b_rom | F93: C67_HUVEC | G93: OK | H93: 58.4568 | I93: 31.2911 | J93: 0.9016184807 | K93: -0.9016184807 | L93: -0.901617 | M93: 0.917033 | N93: 0.359126 | O93: 0.666763 | P93: no | Q93: MYOF | R93: MYOF | S93: MYOF | T93: chr10:95066185-95242074 | U93: Mim200b_rom | V93: C67_HUVEC | W93: OK | X93: 24.8139 | Y93: 32.9555 | Z93: -0.4093707578 | AA93: 0.4093707578 | AB93: 0.409367 | AC93: -0.657276 | AD93: 0.511004 | AE93: 0.789937 | AF93: no
A94: SH3BP5 | B94: SH3BP5 | C94: SH3BP5 | D94: chr3:15296356-15382901 | E94: IN_200b_rom | F94: C67_HUVEC | G94: OK | H94: 14.5295 | I94: 7.80207 | J94: 0.8970562094 | K94: -0.8970562094 | L94: -0.897054 | M94: 1.62088 | N94: 0.105044 | O94: 0.385121 | P94: no | Q94: SH3BP5 | R94: SH3BP5 | S94: SH3BP5 | T94: chr3:15296356-15382901 | U94: Mim200b_rom | V94: C67_HUVEC | W94: OK | X94: 5.89723 | Y94: 8.21804 | Z94: -0.4787568903 | AA94: 0.4787568903 | AB94: 0.478757 | AC94: -0.769646 | AD94: 0.44151 | AE94: 0.74403 | AF94: no
A95: WWC3 | B95: WWC3 | C95: WWC3 | D95: chrX:9983794-10112518 | E95: IN_200b_rom | F95: C67_HUVEC | G95: OK | H95: 13.4059 | I95: 7.23931 | J95: 0.8889439759 | K95: -0.8889439759 | L95: -0.888947 | M95: 1.55418 | N95: 0.120142 | O95: 0.409428 | P95: no | Q95: WWC3 | R95: WWC3 | S95: WWC3 | T95: chrX:9983794-10112518 | U95: Mim200b_rom | V95: C67_HUVEC | W95: OK | X95: 5.73264 | Y95: 7.61988 | Z95: -0.4105685948 | AA95: 0.4105685948 | AB95: 0.410568 | AC95: -0.692981 | AD95: 0.488321 | AE95: 0.774599 | AF95: no
A96: FLJ41200 | B96: FLJ41200 | C96: FLJ41200 | D96: chr9:13406378-13431328 | E96: IN_200b_rom | F96: C67_HUVEC | G96: OK | H96: 14.1318 | I96: 7.64837 | J96: 0.8857210144 | K96: -0.8857210144 | L96: -0.885718 | M96: 1.5474 | N96: 0.121768 | O96: 0.411859 | P96: no | Q96: FLJ41200 | R96: FLJ41200 | S96: FLJ41200 | T96: chr9:13406378-13431328 | U96: Mim200b_rom | V96: C67_HUVEC | W96: OK | X96: 3.61632 | Y96: 8.0556 | Z96: -1.155469704 | AA96: 1.155469704 | AB96: 1.15547 | AC96: -1.68877 | AD96: 0.0912642 | AE96: 0.365258 | AF96: no
A97: RNASEH2A | B97: RNASEH2A | C97: RNASEH2A | D97: chr19:12917427-12924462 | E97: IN_200b_rom | F97: C67_HUVEC | G97: OK | H97: 11.1118 | I97: 6.0295 | J97: 0.8819822619 | K97: -0.8819822619 | L97: -0.881979 | M97: 1.33529 | N97: 0.18178 | O97: 0.493855 | P97: no | Q97: RNASEH2A | R97: RNASEH2A | S97: RNASEH2A | T97: chr19:12917427-12924462 | U97: Mim200b_rom | V97: C67_HUVEC | W97: OK | X97: 3.82631 | Y97: 6.35496 | Z97: -0.7319292818 | AA97: 0.7319292818 | AB97: 0.731927 | AC97: -0.919031 | AD97: 0.35808 | AE97: 0.682917 | AF97: no
A98: RAB3A | B98: RAB3A | C98: RAB3A | D98: chr19:18307610-18314874 | E98: IN_200b_rom | F98: C67_HUVEC | G98: OK | H98: 1.44454 | I98: 0.78408 | J98: 0.8815373876 | K98: -0.8815373876 | L98: -0.881537 | M98: 0.805115 | N98: 0.420753 | O98: 0.711277 | P98: no | Q98: RAB3A | R98: RAB3A | S98: RAB3A | T98: chr19:18307610-18314874 | U98: Mim200b_rom | V98: C67_HUVEC | W98: OK | X98: 0.655525 | Y98: 0.823936 | Z98: -0.329881477 | AA98: 0.329881477 | AB98: 0.329882 | AC98: -0.26592 | AD98: 0.7903 | AE98: 0.92557 | AF98: no
A99: SYNPO | B99: SYNPO | C99: SYNPO | D99: chr5:149980641-150038792 | E99: IN_200b_rom | F99: C67_HUVEC | G99: OK | H99: 105.026 | I99: 57.2281 | J99: 0.8759509078 | K99: -0.8759509078 | L99: -0.875951 | M99: 0.723038 | N99: 0.469656 | O99: 0.745748 | P99: no | Q99: SYNPO | R99: SYNPO | S99: SYNPO | T99: chr5:149980641-150038792 | U99: Mim200b_rom | V99: C67_HUVEC | W99: OK | X99: 49.0717 | Y99: 60.2429 | Z99: -0.295899969 | AA99: 0.295899969 | AB99: 0.2959 | AC99: -0.327807 | AD99: 0.743058 | AE99: 0.902396 | AF99: no
A100: FZD4 | B100: FZD4 | C100: FZD4 | D100: chr11:86656716-86666440 | E100: IN_200b_rom | F100: C67_HUVEC | G100: OK | H100: 30.9635 | I100: 16.8968 | J100: 0.87381851 | K100: -0.87381851 | L100: -0.873822 | M100: 1.20268 | N100: 0.229099 | O100: 0.547392 | P100: no | Q100: FZD4 | R100: FZD4 | S100: FZD4 | T100: chr11:86656716-86666440 | U100: Mim200b_rom | V100: C67_HUVEC | W100: OK | X100: 7.68953 | Y100: 17.7898 | Z100: -1.210082966 | AA100: 1.210082966 | AB100: 1.21009 | AC100: -1.93818 | AD100: 0.0526007 | AE100: 0.276682 | AF100: no
A101: AGAP2 | B101: AGAP2 | C101: AGAP2 | D101: chr12:58118993-58135940 | E101: IN_200b_rom | F101: C67_HUVEC | G101: OK | H101: 1.95933 | I101: 1.07137 | J101: 0.8709035998 | K101: -0.8709035998 | L101: -0.870903 | M101: 1.14033 | N101: 0.254148 | O101: 0.570883 | P101: no | Q101: AGAP2 | R101: AGAP2 | S101: AGAP2 | T101: chr12:58118993-58135940 | U101: Mim200b_rom | V101: C67_HUVEC | W101: OK | X101: 0.687945 | Y101: 1.12811 | Z101: -0.7135426155 | AA101: 0.7135426155 | AB101: 0.713539 | AC101: -0.767918 | AD101: 0.442536 | AE101: 0.745067 | AF101: no
A102: ZCCHC24 | B102: ZCCHC24 | C102: ZCCHC24 | D102: chr10:81142082-81205383 | E102: IN_200b_rom | F102: C67_HUVEC | G102: OK | H102: 2.35955 | I102: 1.29113 | J102: 0.8698774746 | K102: -0.8698774746 | L102: -0.869879 | M102: 1.23377 | N102: 0.217288 | O102: 0.534982 | P102: no | Q102: ZCCHC24 | R102: ZCCHC24 | S102: ZCCHC24 | T102: chr10:81142082-81205383 | U102: Mim200b_rom | V102: C67_HUVEC | W102: OK | X102: 0.331977 | Y102: 1.35968 | Z102: -2.034111956 | AA102: 2.034111956 | AB102: 2.03411 | AC102: -2.14765 | AD102: 0.0317414 | AE102: 0.209569 | AF102: no
A103: PCOLCE | B103: PCOLCE | C103: PCOLCE | D103: chr7:100183955-100205798 | E103: IN_200b_rom | F103: C67_HUVEC | G103: OK | H103: 2.29852 | I103: 1.26089 | J103: 0.866262799 | K103: -0.866262799 | L103: -0.866256 | M103: 0.911656 | N103: 0.36195 | O103: 0.668846 | P103: no | Q103: PCOLCE | R103: PCOLCE | S103: PCOLCE | T103: chr7:100183955-100205798 | U103: Mim200b_rom | V103: C67_HUVEC | W103: OK | X103: 1.09303 | Y103: 1.32821 | Z103: -0.281150267 | AA103: 0.281150267 | AB103: 0.281151 | AC103: -0.260092 | AD103: 0.794793 | AE103: 0.927794 | AF103: no
A104: GALNT12 | B104: GALNT12 | C104: GALNT12 | D104: chr9:101569980-101612363 | E104: IN_200b_rom | F104: C67_HUVEC | G104: OK | H104: 5.53324 | I104: 3.04198 | J104: 0.8631138331 | K104: -0.8631138331 | L104: -0.863116 | M104: 1.31527 | N104: 0.18842 | O104: 0.501416 | P104: no | Q104: GALNT12 | R104: GALNT12 | S104: GALNT12 | T104: chr9:101569980-101612363 | U104: Mim200b_rom | V104: C67_HUVEC | W104: OK | X104: 2.31221 | Y104: 3.2029 | Z104: -0.4701063229 | AA104: 0.4701063229 | AB104: 0.470104 | AC104: -0.611084 | AD104: 0.541144 | AE104: 0.809676 | AF104: no
A105: PPP1R16B | B105: PPP1R16B | C105: PPP1R16B | D105: chr20:37434347-37551667 | E105: IN_200b_rom | F105: C67_HUVEC | G105: OK | H105: 9.42852 | I105: 5.22449 | J105: 0.8517411158 | K105: -0.8517411158 | L105: -0.85174 | M105: 1.72769 | N105: 0.0840439 | O105: 0.345389 | P105: no | Q105: PPP1R16B | R105: PPP1R16B | S105: PPP1R16B | T105: chr20:37434347-37551667 | U105: Mim200b_rom | V105: C67_HUVEC | W105: OK | X105: 4.3462 | Y105: 5.4999 | Z105: -0.3396508227 | AA105: 0.3396508227 | AB105: 0.33965 | AC105: -0.657128 | AD105: 0.511099 | AE105: 0.789937 | AF105: no
A106: GM2A | B106: GM2A | C106: GM2A | D106: chr5:150632612-150649953 | E106: IN_200b_rom | F106: C67_HUVEC | G106: OK | H106: 16.1402 | I106: 8.94649 | J106: 0.8512647736 | K106: -0.8512647736 | L106: -0.851264 | M106: 1.65194 | N106: 0.0985477 | O106: 0.374197 | P106: no | Q106: GM2A | R106: GM2A | S106: GM2A | T106: chr5:150632612-150649953 | U106: Mim200b_rom | V106: C67_HUVEC | W106: OK | X106: 5.81263 | Y106: 9.44141 | Z106: -0.6998112533 | AA106: 0.6998112533 | AB106: 0.699811 | AC106: -1.26876 | AD106: 0.204527 | AE106: 0.537577 | AF106: no
A107: FLOT1 | B107: FLOT1 | C107: FLOT1 | D107: chr6_ssto_hap7:2027817-2042770 | E107: IN_200b_rom | F107: C67_HUVEC | G107: OK | H107: 134.441 | I107: 75.4956 | J107: 0.8325087094 | K107: -0.8325087094 | L107: -0.832504 | M107: 4.09974 | N107: 4.13615e-05 | O107: 0.00232231 | P107: yes | Q107: FLOT1 | R107: FLOT1 | S107: FLOT1 | T107: chr6_ssto_hap7:2027817-2042770 | U107: Mim200b_rom | V107: C67_HUVEC | W107: OK | X107: 43.9402 | Y107: 79.4799 | Z107: -0.855048621 | AA107: 0.855048621 | AB107: 0.85505 | AC107: -3.5859 | AD107: 0.000335913 | AE107: 0.00974223 | AF107: yes
A108: CD93 | B108: CD93 | C108: CD93 | D108: chr20:23059992-23066977 | E108: IN_200b_rom | F108: C67_HUVEC | G108: OK | H108: 97.4305 | I108: 54.9004 | J108: 0.8275568089 | K108: -0.8275568089 | L108: -0.827557 | M108: 0.685946 | N108: 0.492747 | O108: 0.759407 | P108: no | Q108: CD93 | R108: CD93 | S108: CD93 | T108: chr20:23059992-23066977 | U108: Mim200b_rom | V108: C67_HUVEC | W108: OK | X108: 21.2524 | Y108: 57.8151 | Z108: -1.44382057 | AA108: 1.44382057 | AB108: 1.44382 | AC108: -1.79403 | AD108: 0.072809 | AE108: 0.326241 | AF108: no
A109: ODZ3 | B109: ODZ3 | C109: ODZ3 | D109: chr4:183245136-183724177 | E109: IN_200b_rom | F109: C67_HUVEC | G109: OK | H109: 10.6953 | I109: 6.05167 | J109: 0.8215717262 | K109: -0.8215717262 | L109: -0.821565 | M109: 1.38609 | N109: 0.165721 | O109: 0.473975 | P109: no | Q109: ODZ3 | R109: ODZ3 | S109: ODZ3 | T109: chr4:183245136-183724177 | U109: Mim200b_rom | V109: C67_HUVEC | W109: OK | X109: 5.09235 | Y109: 6.37092 | Z109: -0.3231701417 | AA109: 0.3231701417 | AB109: 0.32317 | AC109: -0.536354 | AD109: 0.591714 | AE109: 0.835825 | AF109: no
A110: NOS3 | B110: NOS3 | C110: NOS3 | D110: chr7:150688143-150721586 | E110: IN_200b_rom | F110: C67_HUVEC | G110: OK | H110: 24.3982 | I110: 13.8098 | J110: 0.8210822896 | K110: -0.8210822896 | L110: -0.821083 | M110: 1.69889 | N110: 0.0893406 | O110: 0.356038 | P110: no | Q110: NOS3 | R110: NOS3 | S110: NOS3 | T110: chr7:150688143-150721586 | U110: Mim200b_rom | V110: C67_HUVEC | W110: OK | X110: 10.6701 | Y110: 14.5377 | Z110: -0.4462253423 | AA110: 0.4462253423 | AB110: 0.446227 | AC110: -0.862814 | AD110: 0.38824 | AE110: 0.707085 | AF110: no
A111: CD302 | B111: CD302 | C111: CD302 | D111: chr2:160625138-160761267 | E111: IN_200b_rom | F111: C67_HUVEC | G111: OK | H111: 3.23897 | I111: 1.83497 | J111: 0.8197786291 | K111: -0.8197786291 | L111: -0.819779 | M111: 1.17134 | N111: 0.241462 | O111: 0.558799 | P111: no | Q111: CD302 | R111: CD302 | S111: CD302 | T111: chr2:160625138-160761267 | U111: Mim200b_rom | V111: C67_HUVEC | W111: OK | X111: 0.797216 | Y111: 1.93198 | Z111: -1.277037589 | AA111: 1.277037589 | AB111: 1.27704 | AC111: -1.4413 | AD111: 0.149499 | AE111: 0.470421 | AF111: no
A112: LOC644538 | B112: LOC644538 | C112: LOC644538 | D112: chrX:134124967-134126503 | E112: IN_200b_rom | F112: C67_HUVEC | G112: OK | H112: 3.18908 | I112: 1.80912 | J112: 0.817852183 | K112: -0.817852183 | L112: -0.817849 | M112: 0.939978 | N112: 0.347229 | O112: 0.658391 | P112: no | Q112: LOC644538 | R112: LOC644538 | S112: LOC644538 | T112: chrX:134124967-134126503 | U112: Mim200b_rom | V112: C67_HUVEC | W112: OK | X112: 1.47707 | Y112: 1.90616 | Z112: -0.3679310232 | AA112: 0.3679310232 | AB112: 0.367925 | AC112: -0.366599 | AD112: 0.713918 | AE112: 0.893834 | AF112: no
A113: GABRE | B113: GABRE | C113: GABRE | D113: chrX:151121595-151143151 | E113: IN_200b_rom | F113: C67_HUVEC | G113: OK | H113: 12.1834 | I113: 6.92384 | J113: 0.8152725082 | K113: -0.8152725082 | L113: -0.81527 | M113: 1.45748 | N113: 0.144984 | O113: 0.447296 | P113: no | Q113: GABRE | R113: GABRE | S113: GABRE | T113: chrX:151121595-151143151 | U113: Mim200b_rom | V113: C67_HUVEC | W113: OK | X113: 5.70623 | Y113: 7.28714 | Z113: -0.3528148094 | AA113: 0.3528148094 | AB113: 0.352816 | AC113: -0.563751 | AD113: 0.572924 | AE113: 0.826486 | AF113: no
A114: CYFIP2 | B114: CYFIP2 | C114: CYFIP2 | D114: chr5:156693090-156822606 | E114: IN_200b_rom | F114: C67_HUVEC | G114: OK | H114: 5.30652 | I114: 3.02047 | J114: 0.8129929985 | K114: -0.8129929985 | L114: -0.81299 | M114: 1.64337 | N114: 0.100306 | O114: 0.376572 | P114: no | Q114: CYFIP2 | R114: CYFIP2 | S114: CYFIP2 | T114: chr5:156693090-156822606 | U114: Mim200b_rom | V114: C67_HUVEC | W114: OK | X114: 1.95833 | Y114: 3.17971 | Z114: -0.6992712977 | AA114: 0.6992712977 | AB114: 0.699269 | AC114: -1.20287 | AD114: 0.229028 | AE114: 0.564835 | AF114: no
A115: RAB38 | B115: RAB38 | C115: RAB38 | D115: chr11:87846414-87908635 | E115: IN_200b_rom | F115: C67_HUVEC | G115: OK | H115: 6.99813 | I115: 4.01418 | J115: 0.8018641548 | K115: -0.8018641548 | L115: -0.801864 | M115: 1.13337 | N115: 0.25706 | O115: 0.574057 | P115: no | Q115: RAB38 | R115: RAB38 | S115: RAB38 | T115: chr11:87846414-87908635 | U115: Mim200b_rom | V115: C67_HUVEC | W115: OK | X115: 2.96013 | Y115: 4.22194 | Z115: -0.5122455399 | AA115: 0.5122455399 | AB115: 0.512246 | AC115: -0.615122 | AD115: 0.538474 | AE115: 0.807827 | AF115: no
A116: RFTN2 | B116: RFTN2 | C116: RFTN2 | D116: chr2:198435526-198540584 | E116: IN_200b_rom | F116: C67_HUVEC | G116: OK | H116: 1.88748 | I116: 1.08564 | J116: 0.7979155751 | K116: -0.7979155751 | L116: -0.797913 | M116: 0.934893 | N116: 0.349843 | O116: 0.660095 | P116: no | Q116: RFTN2 | R116: RFTN2 | S116: RFTN2 | T116: chr2:198435526-198540584 | U116: Mim200b_rom | V116: C67_HUVEC | W116: OK | X116: 0.407417 | Y116: 1.14353 | Z116: -1.48891613 | AA116: 1.48891613 | AB116: 1.48892 | AC116: -1.38418 | AD116: 0.166303 | AE116: 0.491596 | AF116: no
A117: A1BG | B117: A1BG | C117: A1BG | D117: chr19:58858171-58874214 | E117: IN_200b_rom | F117: C67_HUVEC | G117: OK | H117: 2.24071 | I117: 1.29197 | J117: 0.7943833721 | K117: -0.7943833721 | L117: -0.794381 | M117: 0.832484 | N117: 0.405136 | O117: 0.698495 | P117: no | Q117: A1BG | R117: A1BG | S117: A1BG | T117: chr19:58858171-58874214 | U117: Mim200b_rom | V117: C67_HUVEC | W117: OK | X117: 0.994501 | Y117: 1.35985 | Z117: -0.4514027951 | AA117: 0.4514027951 | AB117: 0.451399 | AC117: -0.412444 | AD117: 0.680014 | AE117: 0.878761 | AF117: no
A118: TACC3 | B118: TACC3 | C118: TACC3 | D118: chr4:1723265-1746897 | E118: IN_200b_rom | F118: C67_HUVEC | G118: OK | H118: 8.59148 | I118: 4.9694 | J118: 0.7898350039 | K118: -0.7898350039 | L118: -0.789836 | M118: 1.3746 | N118: 0.169255 | O118: 0.479631 | P118: no | Q118: TACC3 | R118: TACC3 | S118: TACC3 | T118: chr4:1723265-1746897 | U118: Mim200b_rom | V118: C67_HUVEC | W118: OK | X118: 3.02947 | Y118: 5.23523 | Z118: -0.7891875016 | AA118: 0.7891875016 | AB118: 0.789189 | AC118: -1.18051 | AD118: 0.237797 | AE118: 0.573194 | AF118: no
A119: MBOAT2 | B119: MBOAT2 | C119: MBOAT2 | D119: chr2:8996700-9143876 | E119: IN_200b_rom | F119: C67_HUVEC | G119: OK | H119: 3.69678 | I119: 2.149 | J119: 0.7826037067 | K119: -0.7826037067 | L119: -0.782601 | M119: 1.15517 | N119: 0.248021 | O119: 0.564823 | P119: no | Q119: MBOAT2 | R119: MBOAT2 | S119: MBOAT2 | T119: chr2:8996700-9143876 | U119: Mim200b_rom | V119: C67_HUVEC | W119: OK | X119: 1.68538 | Y119: 2.26266 | Z119: -0.4249459031 | AA119: 0.4249459031 | AB119: 0.424944 | AC119: -0.540362 | AD119: 0.588948 | AE119: 0.834791 | AF119: no
A120: GBGT1 | B120: GBGT1 | C120: GBGT1 | D120: chr9:136028339-136039301 | E120: IN_200b_rom | F120: C67_HUVEC | G120: OK | H120: 7.2328 | I120: 4.22775 | J120: 0.7746641909 | K120: -0.7746641909 | L120: -0.774664 | M120: 1.19816 | N120: 0.230855 | O120: 0.548709 | P120: no | Q120: GBGT1 | R120: GBGT1 | S120: GBGT1 | T120: chr9:136028339-136039301 | U120: Mim200b_rom | V120: C67_HUVEC | W120: OK | X120: 3.63131 | Y120: 4.45038 | Z120: -0.2934384309 | AA120: 0.2934384309 | AB120: 0.293437 | AC120: -0.392185 | AD120: 0.694921 | AE120: 0.886184 | AF120: no
A121: LIMS2 | B121: LIMS2 | C121: LIMS2 | D121: chr2:128395995-128439360 | E121: IN_200b_rom | F121: C67_HUVEC | G121: OK | H121: 43.1163 | I121: 25.2029 | J121: 0.7746436308 | K121: -0.7746436308 | L121: -0.774641 | M121: 1.75739 | N121: 0.0788518 | O121: 0.336418 | P121: no | Q121: LIMS2 | R121: LIMS2 | S121: LIMS2 | T121: chr2:128395995-128439360 | U121: Mim200b_rom | V121: C67_HUVEC | W121: OK | X121: 21.3782 | Y121: 26.4898 | Z121: -0.309296565 | AA121: 0.309296565 | AB121: 0.3093 | AC121: -0.871619 | AD121: 0.383416 | AE121: 0.703442 | AF121: no
A122: PTPN22 | B122: PTPN22 | C122: PTPN22 | D122: chr1:114356432-114447741 | E122: IN_200b_rom | F122: C67_HUVEC | G122: OK | H122: 2.53198 | I122: 1.48176 | J122: 0.7729542151 | K122: -0.7729542151 | L122: -0.772951 | M122: 1.2674 | N122: 0.205011 | O122: 0.521156 | P122: no | Q122: PTPN22 | R122: PTPN22 | S122: PTPN22 | T122: chr1:114356432-114447741 | U122: Mim200b_rom | V122: C67_HUVEC | W122: OK | X122: 0.66805 | Y122: 1.5605 | Z122: -1.223980367 | AA122: 1.223980367 | AB122: 1.22398 | AC122: -1.69214 | AD122: 0.0906202 | AE122: 0.363942 | AF122: no
A123: FES | B123: FES | C123: FES | D123: chr15:91427664-91439006 | E123: IN_200b_rom | F123: C67_HUVEC | G123: OK | H123: 23.2628 | I123: 13.6983 | J123: 0.7640278941 | K123: -0.7640278941 | L123: -0.764029 | M123: 2.26421 | N123: 0.0235612 | O123: 0.175699 | P123: no | Q123: FES | R123: FES | S123: FES | T123: chr15:91427664-91439006 | U123: Mim200b_rom | V123: C67_HUVEC | W123: OK | X123: 8.62515 | Y123: 14.448 | Z123: -0.7442483459 | AA123: 0.7442483459 | AB123: 0.744249 | AC123: -2.21124 | AD123: 0.0270189 | AE123: 0.190255 | AF123: no
A124: GPER | B124: GPER | C124: GPER | D124: chr7:1036622-1177893 | E124: IN_200b_rom | F124: C67_HUVEC | G124: OK | H124: 3.76503 | I124: 2.22147 | J124: 0.7611467019 | K124: -0.7611467019 | L124: -0.761149 | M124: 1.18404 | N124: 0.236399 | O124: 0.554582 | P124: no | Q124: GPER | R124: GPER | S124: GPER | T124: chr7:1036622-1177893 | U124: Mim200b_rom | V124: C67_HUVEC | W124: OK | X124: 0.632722 | Y124: 2.33685 | Z124: -1.884921467 | AA124: 1.884921467 | AB124: 1.88492 | AC124: -2.35809 | AD124: 0.018369 | AE124: 0.154037 | AF124: no
A125: FUT8 | B125: FUT8 | C125: FUT8 | D125: chr14:65877309-66210839 | E125: IN_200b_rom | F125: C67_HUVEC | G125: OK | H125: 8.75635 | I125: 5.17453 | J125: 0.7589017923 | K125: -0.7589017923 | L125: -0.758901 | M125: 1.35643 | N125: 0.174964 | O125: 0.48664 | P125: no | Q125: FUT8 | R125: FUT8 | S125: FUT8 | T125: chr14:65877309-66210839 | U125: Mim200b_rom | V125: C67_HUVEC | W125: OK | X125: 4.22583 | Y125: 5.44821 | Z125: -0.3665475822 | AA125: 0.3665475822 | AB125: 0.366548 | AC125: -0.584698 | AD125: 0.558751 | AE125: 0.818105 | AF125: no
A126: THRA | B126: THRA | C126: THRA | D126: chr17:38218445-38256973 | E126: IN_200b_rom | F126: C67_HUVEC | G126: OK | H126: 11.0115 | I126: 6.54203 | J126: 0.7512007276 | K126: -0.7512007276 | L126: -0.751196 | M126: 1.8234 | N126: 0.0682424 | O126: 0.311005 | P126: no | Q126: THRA | R126: THRA | S126: THRA | T126: chr17:38218445-38256973 | U126: Mim200b_rom | V126: C67_HUVEC | W126: OK | X126: 3.67039 | Y126: 6.88671 | Z126: -0.9078815604 | AA126: 0.9078815604 | AB126: 0.907883 | AC126: -1.77621 | AD126: 0.0756982 | AE126: 0.333308 | AF126: no
A127: PRR11 | B127: PRR11 | C127: PRR11 | D127: chr17:57232859-57284070 | E127: IN_200b_rom | F127: C67_HUVEC | G127: OK | H127: 1.06414 | I127: 0.632956 | J127: 0.7495108475 | K127: -0.7495108475 | L127: -0.749507 | M127: 0.952078 | N127: 0.341057 | O127: 0.652716 | P127: no | Q127: PRR11 | R127: PRR11 | S127: PRR11 | T127: chr17:57232859-57284070 | U127: Mim200b_rom | V127: C67_HUVEC | W127: OK | X127: 0.476431 | Y127: 0.666465 | Z127: -0.4842618246 | AA127: 0.4842618246 | AB127: 0.484264 | AC127: -0.531211 | AD127: 0.595273 | AE127: 0.838307 | AF127: no
A128: C14orf139 | B128: C14orf139 | C128: C14orf139 | D128: chr14:95873603-95876427 | E128: IN_200b_rom | F128: C67_HUVEC | G128: OK | H128: 3.96495 | I128: 2.36781 | J128: 0.7437493534 | K128: -0.7437493534 | L128: -0.74375 | M128: 1.08374 | N128: 0.27848 | O128: 0.592362 | P128: no | Q128: C14orf139 | R128: C14orf139 | S128: C14orf139 | T128: chr14:95873603-95876427 | U128: Mim200b_rom | V128: C67_HUVEC | W128: OK | X128: 1.35455 | Y128: 2.49209 | Z128: -0.879542523 | AA128: 0.879542523 | AB128: 0.879539 | AC128: -1.06749 | AD128: 0.28575 | AE128: 0.622429 | AF128: no
A129: SULT1A2 | B129: SULT1A2 | C129: SULT1A2 | D129: chr16:28603263-28608391 | E129: IN_200b_rom | F129: C67_HUVEC | G129: OK | H129: 1.23484 | I129: 0.737628 | J129: 0.7433587959 | K129: -0.7433587959 | L129: -0.74336 | M129: 0.711965 | N129: 0.476487 | O129: 0.750086 | P129: no | Q129: SULT1A2 | R129: SULT1A2 | S129: SULT1A2 | T129: chr16:28603263-28608391 | U129: Mim200b_rom | V129: C67_HUVEC | W129: OK | X129: 0.561346 | Y129: 0.776795 | Z129: -0.4686436275 | AA129: 0.4686436275 | AB129: 0.468643 | AC129: -0.374732 | AD129: 0.70786 | AE129: 0.890858 | AF129: no
A130: PDZD7 | B130: PDZD7 | C130: PDZD7 | D130: chr10:102756863-102790914 | E130: IN_200b_rom | F130: C67_HUVEC | G130: OK | H130: 1.01477 | I130: 0.609891 | J130: =IF(G130="NOTEST","",IF(H130=0,-LOG(I130,2),IF(I130=0,LOG(H130,2),LOG((H130/I130),2)))) -> 0.7345294425 | K130: =IF(G130="NOTEST","",IF(H130=0,LOG(I130,2),IF(I130=0,-LOG(H130,2),LOG((I130/H130),2)))) -> -0.7345294425 | L130: -0.734531 | M130: 0.799283 | N130: 0.424127 | O130: 0.713293 | P130: no | Q130: PDZD7 | R130: PDZD7 | S130: PDZD7 | T130: chr10:102756863-102790914 | U130: Mim200b_rom | V130: C67_HUVEC | W130: OK | X130: 0.506162 | Y130: 0.642263 | Z130: =IF(W130="NOTEST","",IF(X130=0,-LOG(Y130,2),IF(Y130=0,LOG(X130,2),LOG((X130/Y130),2)))) -> -0.3435649854 | AA130: =IF(W130="NOTEST","",IF(X130=0,LOG(Y130,2),IF(Y130=0,-LOG(X130,2),LOG((Y130/X130),2)))) -> 0.3435649854 | AB130: 0.343565 | AC130: -0.362756 | AD130: 0.716787 | AE130: 0.895451 | AF130: no
A131: PLCD1 | B131: PLCD1 | C131: PLCD1 | D131: chr3:38048986-38071154 | E131: IN_200b_rom | F131: C67_HUVEC | G131: OK | H131: 4.47387 | I131: 2.69111 | J131: 0.7333219729 | K131: -0.7333219729 | L131: -0.733324 | M131: 1.73567 | N131: 0.0826228 | O131: 0.343573 | P131: no | Q131: PLCD1 | R131: PLCD1 | S131: PLCD1 | T131: chr3:38048986-38071154 | U131: Mim200b_rom | V131: C67_HUVEC | W131: OK | X131: 2.12529 | Y131: 2.80603 | Z131: -0.40087072 | AA131: 0.40087072 | AB131: 0.400868 | AC131: -0.814489 | AD131: 0.415365 | AE131: 0.726655 | AF131: no
A132: ATP2B4 | B132: ATP2B4 | C132: ATP2B4 | D132: chr1:203595927-203713209 | E132: IN_200b_rom | F132: C67_HUVEC | G132: OK | H132: 14.5236 | I132: 8.74826 | J132: 0.7313310987 | K132: -0.7313310987 | L132: -0.731332 | M132: 1.2482 | N132: 0.211957 | O132: 0.527929 | P132: no | Q132: ATP2B4 | R132: ATP2B4 | S132: ATP2B4 | T132: chr1:203595927-203713209 | U132: Mim200b_rom | V132: C67_HUVEC | W132: OK | X132: 6.20946 | Y132: 9.21101 | Z132: -0.5688915473 | AA132: 0.5688915473 | AB132: 0.568891 | AC132: -0.976671 | AD132: 0.328732 | AE132: 0.660598 | AF132: no
A133: OPRL1 | B133: OPRL1 | C133: OPRL1 | D133: chr20:62711470-62731996 | E133: IN_200b_rom | F133: C67_HUVEC | G133: OK | H133: 1.69668 | I133: 1.02284 | J133: 0.730134007 | K133: -0.730134007 | L133: -0.730132 | M133: 1.07835 | N133: 0.280876 | O133: 0.595354 | P133: no | Q133: OPRL1 | R133: OPRL1 | S133: OPRL1 | T133: chr20:62711470-62731996 | U133: Mim200b_rom | V133: C67_HUVEC | W133: OK | X133: 0.735108 | Y133: 1.07613 | Z133: -0.5498242433 | AA133: 0.5498242433 | AB133: 0.549821 | AC133: -0.648848 | AD133: 0.516436 | AE133: 0.79221 | AF133: no
A134: SPC24 | B134: SPC24 | C134: SPC24 | D134: chr19:11257830-11266484 | E134: IN_200b_rom | F134: C67_HUVEC | G134: OK | H134: 0.826856 | I134: 0.499158 | J134: 0.7281395521 | K134: -0.7281395521 | L134: -0.728139 | M134: 0.533624 | N134: 0.593602 | O134: 0.816134 | P134: no | Q134: SPC24 | R134: SPC24 | S134: SPC24 | T134: chr19:11257830-11266484 | U134: Mim200b_rom | V134: C67_HUVEC | W134: OK | X134: 0.414815 | Y134: 0.525328 | Z134: -0.3407504183 | AA134: 0.3407504183 | AB134: 0.340749 | AC134: -0.230565 | AD134: 0.817653 | AE134: 0.936475 | AF134: no
A135: PRICKLE4 | B135: PRICKLE4 | C135: PRICKLE4 | D135: chr6:41748499-41755110 | E135: IN_200b_rom | F135: C67_HUVEC | G135: OK | H135: 10.2259 | I135: 6.19382 | J135: 0.7233264607 | K135: -0.7233264607 | L135: -0.723332 | M135: 1.17538 | N135: 0.239841 | O135: 0.557485 | P135: no | Q135: PRICKLE4 | R135: PRICKLE4 | S135: PRICKLE4 | T135: chr6:41748499-41755110 | U135: Mim200b_rom | V135: C67_HUVEC | W135: OK | X135: 3.92572 | Y135: 6.52371 | Z135: -0.732735374 | AA135: 0.732735374 | AB135: 0.732736 | AC135: -1.00614 | AD135: 0.31435 | AE135: 0.647133 | AF135: no
A136: SHC3 | B136: SHC3 | C136: SHC3 | D136: chr9:91620685-91793682 | E136: IN_200b_rom | F136: C67_HUVEC | G136: OK | H136: 0.817383 | I136: 0.497101 | J136: 0.7174732329 | K136: -0.7174732329 | L136: -0.717475 | M136: 0.960746 | N136: 0.33668 | O136: 0.648553 | P136: no | Q136: SHC3 | R136: SHC3 | S136: SHC3 | T136: chr9:91620685-91793682 | U136: Mim200b_rom | V136: C67_HUVEC | W136: OK | X136: 0.38467 | Y136: 0.523359 | Z136: -0.4441795881 | AA136: 0.4441795881 | AB136: 0.444178 | AC136: -0.512784 | AD136: 0.608102 | AE136: 0.844213 | AF136: no
A137: PPM1F | B137: PPM1F | C137: PPM1F | D137: chr22:22273791-22307250 | E137: IN_200b_rom | F137: C67_HUVEC | G137: OK | H137: 38.3764 | I137: 23.4704 | J137: 0.7093769525 | K137: -0.7093769525 | L137: -0.709379 | M137: 0.999662 | N137: 0.317474 | O137: 0.632295 | P137: no | Q137: PPM1F | R137: PPM1F | S137: PPM1F | T137: chr22:22273791-22307250 | U137: Mim200b_rom | V137: C67_HUVEC | W137: OK | X137: 5.94727 | Y137: 24.7085 | Z137: -2.054707951 | AA137: 2.054707951 | AB137: 2.05471 | AC137: -3.3817 | AD137: 0.000720382 | AE137: 0.0169778 | AF137: yes
A138: SDPR | B138: SDPR | C138: SDPR | D138: chr2:192699031-192712006 | E138: IN_200b_rom | F138: C67_HUVEC | G138: OK | H138: 99.9513 | I138: 61.5212 | J138: 0.7001416872 | K138: -0.7001416872 | L138: -0.700143 | M138: 0.857193 | N138: 0.391338 | O138: 0.690082 | P138: no | Q138: SDPR | R138: SDPR | S138: SDPR | T138: chr2:192699031-192712006 | U138: Mim200b_rom | V138: C67_HUVEC | W138: OK | X138: 32.5338 | Y138: 64.7969 | Z138: -0.9939854523 | AA138: 0.9939854523 | AB138: 0.993985 | AC138: -1.44864 | AD138: 0.147437 | AE138: 0.468224 | AF138: no
A139: RHOJ | B139: RHOJ | C139: RHOJ | D139: chr14:63671144-63758559 | E139: IN_200b_rom | F139: C67_HUVEC | G139: OK | H139: 75.654 | I139: 46.6628 | J139: 0.6971434843 | K139: -0.6971434843 | L139: -0.697145 | M139: 1.08695 | N139: 0.277061 | O139: 0.59138 | P139: no | Q139: RHOJ | R139: RHOJ | S139: RHOJ | T139: chr14:63671144-63758559 | U139: Mim200b_rom | V139: C67_HUVEC | W139: OK | X139: 21.404 | Y139: 49.1494 | Z139: -1.199293371 | AA139: 1.199293371 | AB139: 1.19929 | AC139: -1.99044 | AD139: 0.0465429 | AE139: 0.259769 | AF139: no
A140: RAPGEF5 | B140: RAPGEF5 | C140: RAPGEF5 | D140: chr7:22157907-22396533 | E140: IN_200b_rom | F140: C67_HUVEC | G140: OK | H140: 18.0886 | I140: 11.1789 | J140: 0.6943025178 | K140: -0.6943025178 | L140: -0.694304 | M140: 1.14625 | N140: 0.251692 | O140: 0.568713 | P140: no | Q140: RAPGEF5 | R140: RAPGEF5 | S140: RAPGEF5 | T140: chr7:22157907-22396533 | U140: Mim200b_rom | V140: C67_HUVEC | W140: OK | X140: 4.81947 | Y140: 11.7716 | Z140: -1.288364019 | AA140: 1.288364019 | AB140: 1.28837 | AC140: -2.19311 | AD140: 0.0282995 | AE140: 0.196335 | AF140: no
A141: C13orf33 | B141: C13orf33 | C141: C13orf33 | D141: chr13:31456971-31506745 | E141: IN_200b_rom | F141: C67_HUVEC | G141: OK | H141: 1.83531 | I141: 1.13669 | J141: 0.6911849139 | K141: -0.6911849139 | L141: -0.69119 | M141: 0.773863 | N141: 0.439012 | O141: 0.722705 | P141: no | Q141: C13orf33 | R141: C13orf33 | S141: C13orf33 | T141: chr13:31456971-31506745 | U141: Mim200b_rom | V141: C67_HUVEC | W141: OK | X141: 0.538814 | Y141: 1.19799 | Z141: -1.152756624 | AA141: 1.152756624 | AB141: 1.15275 | AC141: -1.05791 | AD141: 0.290094 | AE141: 0.626283 | AF141: no
A142: MST1 | B142: MST1 | C142: MST1 | D142: chr3:49721379-49726196 | E142: IN_200b_rom | F142: C67_HUVEC | G142: OK | H142: 5.80077 | I142: 3.62092 | J142: 0.6798881152 | K142: -0.6798881152 | L142: -0.679886 | M142: 1.03687 | N142: 0.299795 | O142: 0.615012 | P142: no | Q142: MST1 | R142: MST1 | S142: MST1 | T142: chr3:49721379-49726196 | U142: Mim200b_rom | V142: C67_HUVEC | W142: OK | X142: 2.87116 | Y142: 3.81097 | Z142: -0.408524522 | AA142: 0.408524522 | AB142: 0.408528 | AC142: -0.537426 | AD142: 0.590973 | AE142: 0.835648 | AF142: no
A143: CD53 | B143: CD53 | C143: CD53 | D143: chr1:111413820-111442558 | E143: IN_200b_rom | F143: C67_HUVEC | G143: OK | H143: 1.21806 | I143: 0.762044 | J143: 0.6766389946 | K143: -0.6766389946 | L143: -0.676639 | M143: 0.620042 | N143: 0.53523 | O143: 0.784138 | P143: no | Q143: CD53 | R143: CD53 | S143: CD53 | T143: chr1:111413820-111442558 | U143: Mim200b_rom | V143: C67_HUVEC | W143: OK | X143: 0.380552 | Y143: 0.801955 | Z143: -1.075427683 | AA143: 1.075427683 | AB143: 1.07543 | AC143: -0.835101 | AD143: 0.403661 | AE143: 0.718468 | AF143: no
A144: ARHGAP33 | B144: ARHGAP33 | C144: ARHGAP33 | D144: chr19:36266416-36279724 | E144: IN_200b_rom | F144: C67_HUVEC | G144: OK | H144: 1.82412 | I144: 1.14221 | J144: 0.67537272 | K144: -0.67537272 | L144: -0.675363 | M144: 1.15818 | N144: 0.246791 | O144: 0.563274 | P144: no | Q144: ARHGAP33 | R144: ARHGAP33 | S144: ARHGAP33 | T144: chr19:36266416-36279724 | U144: Mim200b_rom | V144: C67_HUVEC | W144: OK | X144: 0.746265 | Y144: 1.20235 | Z144: -0.6880969907 | AA144: 0.6880969907 | AB144: 0.688102 | AC144: -0.927734 | AD144: 0.353546 | AE144: 0.679964 | AF144: no
A145: FRY | B145: FRY | C145: FRY | D145: chr13:32605436-32870776 | E145: IN_200b_rom | F145: C67_HUVEC | G145: OK | H145: 2.57 | I145: 1.60932 | J145: 0.6753171368 | K145: -0.6753171368 | L145: -0.675316 | M145: 1.18997 | N145: 0.234058 | O145: 0.551469 | P145: no | Q145: FRY | R145: FRY | S145: FRY | T145: chr13:32605436-32870776 | U145: Mim200b_rom | V145: C67_HUVEC | W145: OK | X145: 1.26149 | Y145: 1.69384 | Z145: -0.4251688343 | AA145: 0.4251688343 | AB145: 0.425167 | AC145: -0.658311 | AD145: 0.510338 | AE145: 0.789434 | AF145: no
A146: CAPN3 | B146: CAPN3 | C146: CAPN3 | D146: chr15:42651697-42704515 | E146: IN_200b_rom | F146: C67_HUVEC | G146: OK | H146: 3.82326 | I146: 2.39775 | J146: 0.6731220688 | K146: -0.6731220688 | L146: -0.67312 | M146: 1.31905 | N146: 0.187151 | O146: 0.500461 | P146: no | Q146: CAPN3 | R146: CAPN3 | S146: CAPN3 | T146: chr15:42651697-42704515 | U146: Mim200b_rom | V146: C67_HUVEC | W146: OK | X146: 2.08144 | Y146: 2.49193 | Z146: -0.259681571 | AA146: 0.259681571 | AB146: 0.259683 | AC146: -0.443322 | AD146: 0.657533 | AE146: 0.867339 | AF146: no
A147: MLKL | B147: MLKL | C147: MLKL | D147: chr16:74705752-74734789 | E147: IN_200b_rom | F147: C67_HUVEC | G147: OK | H147: 33.9877 | I147: 21.3851 | J147: 0.6684067823 | K147: -0.6684067823 | L147: -0.66841 | M147: 1.21016 | N147: 0.226219 | O147: 0.544452 | P147: no | Q147: MLKL | R147: MLKL | S147: MLKL | T147: chr16:74705752-74734789 | U147: Mim200b_rom | V147: C67_HUVEC | W147: OK | X147: 18.4067 | Y147: 22.522 | Z147: -0.2911039476 | AA147: 0.2911039476 | AB147: 0.291102 | AC147: -0.492537 | AD147: 0.62234 | AE147: 0.851345 | AF147: no
A148: FADS1 | B148: FADS1 | C148: FADS1 | D148: chr11:61567096-61584529 | E148: IN_200b_rom | F148: C67_HUVEC | G148: OK | H148: 13.9685 | I148: 8.79339 | J148: 0.6676857451 | K148: -0.6676857451 | L148: -0.667683 | M148: 1.20199 | N148: 0.229368 | O148: 0.547441 | P148: no | Q148: FADS1 | R148: FADS1 | S148: FADS1 | T148: chr11:61567096-61584529 | U148: Mim200b_rom | V148: C67_HUVEC | W148: OK | X148: 6.33602 | Y148: 9.25722 | Z148: -0.547002119 | AA148: 0.547002119 | AB148: 0.547003 | AC148: -0.925417 | AD148: 0.354749 | AE148: 0.680721 | AF148: no
A149: GFPT2 | B149: GFPT2 | C149: GFPT2 | D149: chr5:179727699-179780315 | E149: IN_200b_rom | F149: C67_HUVEC | G149: OK | H149: 12.3091 | I149: 7.76589 | J149: 0.6645021032 | K149: -0.6645021032 | L149: -0.664508 | M149: 1.2075 | N149: 0.227242 | O149: 0.545469 | P149: no | Q149: GFPT2 | R149: GFPT2 | S149: GFPT2 | T149: chr5:179727699-179780315 | U149: Mim200b_rom | V149: C67_HUVEC | W149: OK | X149: 6.79949 | Y149: 8.17412 | Z149: -0.2656368828 | AA149: 0.2656368828 | AB149: 0.265637 | AC149: -0.432969 | AD149: 0.665037 | AE149: 0.870027 | AF149: no
A150: IFT140 | B150: IFT140 | C150: IFT140 | D150: chr16:1543351-1662109 | E150: IN_200b_rom | F150: C67_HUVEC | G150: OK | H150: 3.74476 | I150: 2.36478 | J150: 0.6631672868 | K150: -0.6631672868 | L150: -0.663165 | M150: 1.11098 | N150: 0.266577 | O150: 0.581834 | P150: no | Q150: IFT140 | R150: IFT140 | S150: IFT140 | T150: chr16:1543351-1662109 | U150: Mim200b_rom | V150: C67_HUVEC | W150: OK | X150: 2.06331 | Y150: 2.48918 | Z150: -0.2707099658 | AA150: 0.2707099658 | AB150: 0.270713 | AC150: -0.397377 | AD150: 0.691089 | AE150: 0.884333 | AF150: no
A151: WFS1 | B151: WFS1 | C151: WFS1 | D151: chr4:6271576-6304992 | E151: IN_200b_rom | F151: C67_HUVEC | G151: OK | H151: 47.3729 | I151: 30.035 | J151: 0.6574173274 | K151: -0.6574173274 | L151: -0.657416 | M151: 1.64871 | N151: 0.0992063 | O151: 0.375542 | P151: no | Q151: WFS1 | R151: WFS1 | S151: WFS1 | T151: chr4:6271576-6304992 | U151: Mim200b_rom | V151: C67_HUVEC | W151: OK | X151: 23.9764 | Y151: 31.5932 | Z151: -0.3979990139 | AA151: 0.3979990139 | AB151: 0.397998 | AC151: -1.12544 | AD151: 0.260404 | AE151: 0.597731 | AF151: no
A152: ANKHD1-EIF4EBP3 | B152: ANKHD1-EIF4EBP3 | C152: ANKHD1-EIF4EBP3 | D152: chr5:139781398-139929163 | E152: IN_200b_rom | F152: C67_HUVEC | G152: OK | H152: 4.6644 | I152: 2.99005 | J152: 0.641521904 | K152: -0.641521904 | L152: -0.641525 | M152: 1.15923 | N152: 0.246364 | O152: 0.563274 | P152: no | Q152: ANKHD1 | R152: ANKHD1 | S152: ANKHD1 | T152: chr5:139781398-139929163 | U152: Mim200b_rom | V152: C67_HUVEC | W152: OK | X152: 8.95067 | Y152: 11.85 | Z152: -0.404819475 | AA152: 0.404819475 | AB152: 0.404821 | AC152: -0.853579 | AD152: 0.393338 | AE152: 0.711855 | AF152: no
A153: RELL1 | B153: RELL1 | C153: RELL1 | D153: chr4:37455551-37687999 | E153: IN_200b_rom | F153: C67_HUVEC | G153: OK | H153: 19.1482 | I153: 12.2768 | J153: 0.6412742149 | K153: -0.6412742149 | L153: -0.641274 | M153: 1.14867 | N153: 0.250691 | O153: 0.567618 | P153: no | Q153: RELL1 | R153: RELL1 | S153: RELL1 | T153: chr4:37455551-37687999 | U153: Mim200b_rom | V153: C67_HUVEC | W153: OK | X153: 8.68044 | Y153: 12.9258 | Z153: -0.5744134962 | AA153: 0.5744134962 | AB153: 0.574415 | AC153: -0.974749 | AD153: 0.329685 | AE153: 0.661192 | AF153: no
A154: GCOM1 | B154: GCOM1 | C154: GCOM1 | D154: chr15:57884101-58009755 | E154: IN_200b_rom | F154: C67_HUVEC | G154: OK | H154: 6.22541 | I154: 3.99205 | J154: 0.6410390645 | K154: -0.6410390645 | L154: -0.641037 | M154: 1.08529 | N154: 0.277793 | O154: 0.591897 | P154: no | Q154: GCOM1 | R154: GCOM1 | S154: GCOM1 | T154: chr15:57884101-58009755 | U154: Mim200b_rom | V154: C67_HUVEC | W154: OK | X154: 1.82556 | Y154: 4.20524 | Z154: -1.203849054 | AA154: 1.203849054 | AB154: 1.20384 | AC154: -1.65171 | AD154: 0.0985938 | AE154: 0.382774 | AF154: no
A155: FBXO4 | B155: FBXO4 | C155: FBXO4 | D155: chr5:41925355-41941672 | E155: IN_200b_rom | F155: C67_HUVEC | G155: OK | H155: 3.68383 | I155: 2.367 | J155: 0.6381467799 | K155: -0.6381467799 | L155: -0.638148 | M155: 0.779591 | N155: 0.435632 | O155: 0.720415 | P155: no | Q155: FBXO4 | R155: FBXO4 | S155: FBXO4 | T155: chr5:41925355-41941672 | U155: Mim200b_rom | V155: C67_HUVEC | W155: OK | X155: 1.76301 | Y155: 2.49043 | Z155: -0.4983542031 | AA155: 0.4983542031 | AB155: 0.498356 | AC155: -0.524616 | AD155: 0.59985 | AE155: 0.840863 | AF155: no
A156: SLC25A35 | B156: SLC25A35 | C156: SLC25A35 | D156: chr17:8191081-8198170 | E156: IN_200b_rom | F156: C67_HUVEC | G156: OK | H156: 1.42063 | I156: 0.914043 | J156: 0.636196915 | K156: -0.636196915 | L156: -0.636199 | M156: 0.68783 | N156: 0.49156 | O156: 0.758968 | P156: no | Q156: SLC25A35 | R156: SLC25A35 | S156: SLC25A35 | T156: chr17:8191081-8198170 | U156: Mim200b_rom | V156: C67_HUVEC | W156: OK | X156: 0.804202 | Y156: 0.964904 | Z156: -0.2628274892 | AA156: 0.2628274892 | AB156: 0.262828 | AC156: -0.253559 | AD156: 0.799837 | AE156: 0.930436 | AF156: no
A157: MMP17 | B157: MMP17 | C157: MMP17 | D157: chr12:132312940-132336316 | E157: IN_200b_rom | F157: C67_HUVEC | G157: OK | H157: 7.73335 | I157: 4.97602 | J157: 0.6361012247 | K157: -0.6361012247 | L157: -0.6361 | M157: 1.02986 | N157: 0.303074 | O157: 0.617937 | P157: no | Q157: MMP17 | R157: MMP17 | S157: MMP17 | T157: chr12:132312940-132336316 | U157: Mim200b_rom | V157: C67_HUVEC | W157: OK | X157: 3.05068 | Y157: 5.23623 | Z157: -0.7793976118 | AA157: 0.7793976118 | AB157: 0.7794 | AC157: -1.06436 | AD157: 0.287168 | AE157: 0.623784 | AF157: no
A158: OIP5 | B158: OIP5 | C158: OIP5 | D158: chr15:41601465-41624819 | E158: IN_200b_rom | F158: C67_HUVEC | G158: OK | H158: 0.952087 | I158: 0.613895 | J158: 0.6331014909 | K158: -0.6331014909 | L158: -0.633102 | M158: 0.512358 | N158: 0.6084 | O158: 0.823874 | P158: no | Q158: OIP5 | R158: OIP5 | S158: OIP5 | T158: chr15:41601465-41624819 | U158: Mim200b_rom | V158: C67_HUVEC | W158: OK | X158: 0.442824 | Y158: 0.647764 | Z158: -0.5487348766 | AA158: 0.5487348766 | AB158: 0.548736 | AC158: -0.398369 | AD158: 0.690358 | AE158: 0.884212 | AF158: no
A159: GRASP | B159: GRASP | C159: GRASP | D159: chr12:52400747-52409671 | E159: IN_200b_rom | F159: C67_HUVEC | G159: OK | H159: 35.0917 | I159: 22.642 | J159: 0.632128441 | K159: -0.632128441 | L159: -0.632128 | M159: 1.16165 | N159: 0.245377 | O159: 0.562076 | P159: no | Q159: GRASP | R159: GRASP | S159: GRASP | T159: chr12:52400747-52409671 | U159: Mim200b_rom | V159: C67_HUVEC | W159: OK | X159: 11.3164 | Y159: 23.848 | Z159: -1.075453203 | AA159: 1.075453203 | AB159: 1.07545 | AC159: -1.80932 | AD159: 0.0704011 | AE159: 0.320246 | AF159: no
A160: PXN | B160: PXN | C160: PXN | D160: chr12:120639093-120703563 | E160: IN_200b_rom | F160: C67_HUVEC | G160: OK | H160: 189.38 | I160: 122.732 | J160: 0.6257725261 | K160: -0.6257725261 | L160: -0.62577 | M160: 0.809855 | N160: 0.418024 | O160: 0.709367 | P160: no | Q160: PXN | R160: PXN | S160: PXN | T160: chr12:120639093-120703563 | U160: Mim200b_rom | V160: C67_HUVEC | W160: OK | X160: 106.274 | Y160: 129.187 | Z160: -0.2816722161 | AA160: 0.2816722161 | AB160: 0.281665 | AC160: -0.334346 | AD160: 0.738119 | AE160: 0.901483 | AF160: no
A161: GABBR2 | B161: GABBR2 | C161: GABBR2 | D161: chr9:101050363-101471479 | E161: IN_200b_rom | F161: C67_HUVEC | G161: OK | H161: 8.13749 | I161: 5.27585 | J161: 0.6251803181 | K161: -0.6251803181 | L161: -0.625182 | M161: 1.14592 | N161: 0.251828 | O161: 0.568713 | P161: no | Q161: GABBR2 | R161: GABBR2 | S161: GABBR2 | T161: chr9:101050363-101471479 | U161: Mim200b_rom | V161: C67_HUVEC | W161: OK | X161: 0.139 | Y161: 5.55472 | Z161: -5.320557403 | AA161: 5.320557403 | AB161: 5.32056 | AC161: -5.60777 | AD161: 2.04955e-08 | AE161: 4.06805e-06 | AF161: yes
A162: UCP2 | B162: UCP2 | C162: UCP2 | D162: chr11:73685715-73693889 | E162: IN_200b_rom | F162: C67_HUVEC | G162: OK | H162: 1.28165 | I162: 0.831028 | J162: 0.6250333447 | K162: -0.6250333447 | L162: -0.625033 | M162: 0.578226 | N162: 0.563111 | O162: 0.79969 | P162: no | Q162: UCP2 | R162: UCP2 | S162: UCP2 | T162: chr11:73685715-73693889 | U162: Mim200b_rom | V162: C67_HUVEC | W162: OK | X162: 0.642574 | Y162: 0.874363 | Z162: -0.4443697452 | AA162: 0.4443697452 | AB162: 0.44437 | AC162: -0.36538 | AD162: 0.714828 | AE162: 0.893834 | AF162: no
A163: MGC23284 | B163: MGC23284 | C163: MGC23284 | D163: chr16:88729780-88753594 | E163: IN_200b_rom | F163: C67_HUVEC | G163: OK | H163: 0.95475 | I163: 0.619988 | J163: 0.6228827227 | K163: -0.6228827227 | L163: -0.622882 | M163: 0.697903 | N163: 0.485238 | O163: 0.755671 | P163: no | Q163: MGC23284 | R163: MGC23284 | S163: MGC23284 | T163: chr16:88729780-88753594 | U163: Mim200b_rom | V163: C67_HUVEC | W163: OK | X163: 0.404237 | Y163: 0.652941 | Z163: -0.6917512569 | AA163: 0.6917512569 | AB163: 0.691753 | AC163: -0.638633 | AD163: 0.523062 | AE163: 0.797552 | AF163: no
A164: CCDC34 | B164: CCDC34 | C164: CCDC34 | D164: chr11:27360060-27384795 | E164: IN_200b_rom | F164: C67_HUVEC | G164: OK | H164: 4.92075 | I164: 3.20003 | J164: 0.6207927915 | K164: -0.6207927915 | L164: -0.620794 | M164: 0.840792 | N164: 0.400464 | O164: 0.695361 | P164: no | Q164: CCDC34 | R164: CCDC34 | S164: CCDC34 | T164: chr11:27360060-27384795 | U164: Mim200b_rom | V164: C67_HUVEC | W164: OK | X164: 2.39332 | Y164: 3.37159 | Z164: -0.494415803 | AA164: 0.494415803 | AB164: 0.494415 | AC164: -0.573515 | AD164: 0.566296 | AE164: 0.823429 | AF164: no
A165: HOXB7 | B165: HOXB7 | C165: HOXB7 | D165: chr17:46684594-46688383 | E165: IN_200b_rom | F165: C67_HUVEC | G165: OK | H165: 63.592 | I165: 41.3577 | J165: 0.6206893268 | K165: -0.6206893268 | L165: -0.620689 | M165: 1.09258 | N165: 0.274579 | O165: 0.589769 | P165: no | Q165: HOXB7 | R165: HOXB7 | S165: HOXB7 | T165: chr17:46684594-46688383 | U165: Mim200b_rom | V165: C67_HUVEC | W165: OK | X165: 30.8199 | Y165: 43.5947 | Z165: -0.5002905701 | AA165: 0.5002905701 | AB165: 0.500291 | AC165: -0.843991 | AD165: 0.398674 | AE165: 0.714712 | AF165: no
A166: HSP90AB1 | B166: HSP90AB1 | C166: HSP90AB1 | D166: chr6:44214848-44221614 | E166: IN_200b_rom | F166: C67_HUVEC | G166: OK | H166: 429.491 | I166: 280.13 | J166: 0.6165314055 | K166: -0.6165314055 | L166: -0.616528 | M166: 0.372354 | N166: 0.709629 | O166: 0.880451 | P166: no | Q166: HSP90AB1 | R166: HSP90AB1 | S166: HSP90AB1 | T166: chr6:44214848-44221614 | U166: Mim200b_rom | V166: C67_HUVEC | W166: OK | X166: 241.583 | Y166: 294.97 | Z166: -0.2880492953 | AA166: 0.2880492953 | AB166: 0.28805 | AC166: -0.225393 | AD166: 0.821674 | AE166: 0.938719 | AF166: no
A167: EMCN | B167: EMCN | C167: EMCN | D167: chr4:101316497-101439250 | E167: IN_200b_rom | F167: C67_HUVEC | G167: OK | H167: 9.67458 | I167: 6.33407 | J167: 0.6110662201 | K167: -0.6110662201 | L167: -0.611067 | M167: 1.13215 | N167: 0.257571 | O167: 0.574214 | P167: no | Q167: EMCN | R167: EMCN | S167: EMCN | T167: chr4:101316497-101439250 | U167: Mim200b_rom | V167: C67_HUVEC | W167: OK | X167: 2.49502 | Y167: 6.6705 | Z167: -1.418743525 | AA167: 1.418743525 | AB167: 1.41874 | AC167: -2.26109 | AD167: 0.023754 | AE167: 0.176254 | AF167: no
A168: TMEM123 | B168: TMEM123 | C168: TMEM123 | D168: chr11:102267055-102323775 | E168: IN_200b_rom | F168: C67_HUVEC | G168: OK | H168: 133.385 | I168: 87.3531 | J168: 0.6106656276 | K168: -0.6106656276 | L168: -0.61067 | M168: 0.617619 | N168: 0.536827 | O168: 0.785058 | P168: no | Q168: TMEM123 | R168: TMEM123 | S168: TMEM123 | T168: chr11:102267055-102323775 | U168: Mim200b_rom | V168: C67_HUVEC | W168: OK | X168: 69.2182 | Y168: 91.9782 | Z168: -0.4101405396 | AA168: 0.4101405396 | AB168: 0.410142 | AC168: -0.492647 | AD168: 0.622262 | AE168: 0.851345 | AF168: no
A169: NRP2 | B169: NRP2 | C169: NRP2 | D169: chr2:206547223-206662857 | E169: IN_200b_rom | F169: C67_HUVEC | G169: OK | H169: 73.5594 | I169: 48.1804 | J169: 0.6104633411 | K169: -0.6104633411 | L169: -0.610462 | M169: 1.42373 | N169: 0.154524 | O169: 0.461555 | P169: no | Q169: NRP2 | R169: NRP2 | S169: NRP2 | T169: chr2:206547223-206662857 | U169: Mim200b_rom | V169: C67_HUVEC | W169: OK | X169: 21.523 | Y169: 50.7089 | Z169: -1.236359796 | AA169: 1.236359796 | AB169: 1.23636 | AC169: -3.99171 | AD169: 6.55984e-05 | AE169: 0.00304123 | AF169: yes
A170: DNAJB5 | B170: DNAJB5 | C170: DNAJB5 | D170: chr9:34989637-34998430 | E170: IN_200b_rom | F170: C67_HUVEC | G170: OK | H170: 9.21982 | I170: 6.0487 | J170: 0.6081134765 | K170: -0.6081134765 | L170: -0.608112 | M170: 1.53645 | N170: 0.124429 | O170: 0.416179 | P170: no | Q170: DNAJB5 | R170: DNAJB5 | S170: DNAJB5 | T170: chr9:34989637-34998430 | U170: Mim200b_rom | V170: C67_HUVEC | W170: OK | X170: 4.14474 | Y170: 6.36721 | Z170: -0.6193797431 | AA170: 0.6193797431 | AB170: 0.619378 | AC170: -1.09026 | AD170: 0.2756 | AE170: 0.613216 | AF170: no
A171: CNRIP1 | B171: CNRIP1 | C171: CNRIP1 | D171: chr2:68511302-68547183 | E171: IN_200b_rom | F171: C67_HUVEC | G171: OK | H171: 25.7656 | I171: 16.9164 | J171: 0.6070236093 | K171: -0.6070236093 | L171: -0.607026 | M171: 1.13482 | N171: 0.256451 | O171: 0.573407 | P171: no | Q171: CNRIP1 | R171: CNRIP1 | S171: CNRIP1 | T171: chr2:68511302-68547183 | U171: Mim200b_rom | V171: C67_HUVEC | W171: OK | X171: 12.3295 | Y171: 17.8032 | Z171: -0.5300222837 | AA171: 0.5300222837 | AB171: 0.53002 | AC171: -0.877312 | AD171: 0.380317 | AE171: 0.701288 | AF171: no
A172: SLC20A1 | B172: SLC20A1 | C172: SLC20A1 | D172: chr2:113403433-113421400 | E172: IN_200b_rom | F172: C67_HUVEC | G172: OK | H172: 35.7035 | I172: 23.4472 | J172: 0.6066498577 | K172: -0.6066498577 | L172: -0.606648 | M172: 1.00316 | N172: 0.315782 | O172: 0.630218 | P172: no | Q172: SLC20A1 | R172: SLC20A1 | S172: SLC20A1 | T172: chr2:113403433-113421400 | U172: Mim200b_rom | V172: C67_HUVEC | W172: OK | X172: 19.3764 | Y172: 24.6811 | Z172: -0.3491061417 | AA172: 0.3491061417 | AB172: 0.349107 | AC172: -0.566261 | AD172: 0.571217 | AE172: 0.826172 | AF172: no
A173: PFKFB3 | B173: PFKFB3 | C173: PFKFB3 | D173: chr10:6186842-6277507 | E173: IN_200b_rom | F173: C67_HUVEC | G173: OK | H173: 23.9214 | I173: 15.7955 | J173: 0.59878822 | K173: -0.59878822 | L173: -0.598786 | M173: 1.60943 | N173: 0.107523 | O173: 0.387765 | P173: no | Q173: PFKFB3 | R173: PFKFB3 | S173: PFKFB3 | T173: chr10:6186842-6277507 | U173: Mim200b_rom | V173: C67_HUVEC | W173: OK | X173: 10.7835 | Y173: 16.6293 | Z173: -0.624901931 | AA173: 0.624901931 | AB173: 0.624905 | AC173: -1.86616 | AD173: 0.0620185 | AE173: 0.300925 | AF173: no
A174: UAP1L1 | B174: UAP1L1 | C174: UAP1L1 | D174: chr9:139971952-139978990 | E174: IN_200b_rom | F174: C67_HUVEC | G174: OK | H174: 20.7093 | I174: 13.6799 | J174: 0.5982211053 | K174: -0.5982211053 | L174: -0.598221 | M174: 1.07147 | N174: 0.283958 | O174: 0.598271 | P174: no | Q174: UAP1L1 | R174: UAP1L1 | S174: UAP1L1 | T174: chr9:139971952-139978990 | U174: Mim200b_rom | V174: C67_HUVEC | W174: OK | X174: 8.7582 | Y174: 14.3982 | Z174: -0.7171821632 | AA174: 0.7171821632 | AB174: 0.717178 | AC174: -1.22016 | AD174: 0.222404 | AE174: 0.557788 | AF174: no
A175: FANCI | B175: FANCI | C175: FANCI | D175: chr15:89787193-89878026 | E175: IN_200b_rom | F175: C67_HUVEC | G175: OK | H175: 2.64143 | I175: 1.74811 | J175: 0.5955232084 | K175: -0.5955232084 | L175: -0.595523 | M175: 1.06651 | N175: 0.286193 | O175: 0.600279 | P175: no | Q175: FANCI | R175: FANCI | S175: FANCI | T175: chr15:89787193-89878026 | U175: Mim200b_rom | V175: C67_HUVEC | W175: OK | X175: 1.25627 | Y175: 1.8406 | Z175: -0.5510295692 | AA175: 0.5510295692 | AB175: 0.551029 | AC175: -0.833681 | AD175: 0.404461 | AE175: 0.719102 | AF175: no
A176: LOC729234 | B176: LOC729234 | C176: LOC729234 | D176: chr2:96676298-96700727 | E176: IN_200b_rom | F176: C67_HUVEC | G176: OK | H176: 2.24656 | I176: 1.48762 | J176: 0.5947115439 | K176: -0.5947115439 | L176: -0.594711 | M176: 0.564971 | N176: 0.572094 | O176: 0.805235 | P176: no | Q176: LOC729234 | R176: LOC729234 | S176: LOC729234 | T176: chr2:96676298-96700727 | U176: Mim200b_rom | V176: C67_HUVEC | W176: OK | X176: 0.706909 | Y176: 1.57053 | Z176: -1.151655087 | AA176: 1.151655087 | AB176: 1.15166 | AC176: -0.923579 | AD176: 0.355706 | AE176: 0.681425 | AF176: no
A177: PRR16 | B177: PRR16 | C177: PRR16 | D177: chr5:119800018-120022964 | E177: IN_200b_rom | F177: C67_HUVEC | G177: OK | H177: 0.715375 | I177: 0.47423 | J177: 0.5931127705 | K177: -0.5931127705 | L177: -0.593115 | M177: 0.499969 | N177: 0.617097 | O177: 0.828634 | P177: no | Q177: PRR16 | R177: PRR16 | S177: PRR16 | T177: chr5:119800018-120022964 | U177: Mim200b_rom | V177: C67_HUVEC | W177: OK | X177: 0.376077 | Y177: 0.499401 | Z177: -0.4091706329 | AA177: 0.4091706329 | AB177: 0.409173 | AC177: -0.310626 | AD177: 0.756085 | AE177: 0.908878 | AF177: no
A178: ITGA4 | B178: ITGA4 | C178: ITGA4 | D178: chr2:182321618-182521834 | E178: IN_200b_rom | F178: C67_HUVEC | G178: OK | H178: 1.54931 | I178: 1.02708 | J178: 0.5930772819 | K178: -0.5930772819 | L178: -0.593073 | M178: 0.811688 | N178: 0.416971 | O178: 0.709095 | P178: no | Q178: ITGA4 | R178: ITGA4 | S178: ITGA4 | T178: chr2:182321618-182521834 | U178: Mim200b_rom | V178: C67_HUVEC | W178: OK | X178: 0.80304 | Y178: 1.08138 | Z178: -0.429329823 | AA178: 0.429329823 | AB178: 0.429324 | AC178: -0.510149 | AD178: 0.609947 | AE178: 0.844213 | AF178: no
A179: TSPYL2 | B179: TSPYL2 | C179: TSPYL2 | D179: chrX:53111541-53117728 | E179: IN_200b_rom | F179: C67_HUVEC | G179: OK | H179: 25.5723 | I179: 16.9639 | J179: 0.5921140404 | K179: -0.5921140404 | L179: -0.592117 | M179: 1.06713 | N179: 0.285914 | O179: 0.599976 | P179: no | Q179: TSPYL2 | R179: TSPYL2 | S179: TSPYL2 | T179: chrX:53111541-53117728 | U179: Mim200b_rom | V179: C67_HUVEC | W179: OK | X179: 13.8094 | Y179: 17.8655 | Z179: -0.3715256533 | AA179: 0.3715256533 | AB179: 0.371527 | AC179: -0.628677 | AD179: 0.52956 | AE179: 0.802075 | AF179: no
A180: ITGB3 | B180: ITGB3 | C180: ITGB3 | D180: chr17:45331207-45390077 | E180: IN_200b_rom | F180: C67_HUVEC | G180: OK | H180: 9.63175 | I180: 6.38956 | J180: 0.592081359 | K180: -0.592081359 | L180: -0.592083 | M180: 1.08864 | N180: 0.276313 | O180: 0.591236 | P180: no | Q180: ITGB3 | R180: ITGB3 | S180: ITGB3 | T180: chr17:45331207-45390077 | U180: Mim200b_rom | V180: C67_HUVEC | W180: OK | X180: 5.26131 | Y180: 6.72461 | Z180: -0.3540285425 | AA180: 0.3540285425 | AB180: 0.354027 | AC180: -0.591697 | AD180: 0.554054 | AE180: 0.815828 | AF180: no
A181: FTH1 | B181: FTH1 | C181: FTH1 | D181: chr11:61717355-61735132 | E181: IN_200b_rom | F181: C67_HUVEC | G181: OK | H181: 5907.58 | I181: 3934.79 | J181: 0.5862806201 | K181: -0.5862806201 | L181: -0.586283 | M181: 0.0934261 | N181: 0.925565 | O181: 0.972821 | P181: no | Q181: FTH1 | R181: FTH1 | S181: FTH1 | T181: chr11:61717355-61735132 | U181: Mim200b_rom | V181: C67_HUVEC | W181: OK | X181: 2505.29 | Y181: 4149.43 | Z181: -0.7279355572 | AA181: 0.7279355572 | AB181: 0.727933 | AC181: -0.243295 | AD181: 0.807777 | AE181: 0.932174 | AF181: no
A182: ADAMTS4 | B182: ADAMTS4 | C182: ADAMTS4 | D182: chr1:161159537-161168845 | E182: IN_200b_rom | F182: C67_HUVEC | G182: OK | H182: 7.61542 | I182: 5.08579 | J182: 0.5824517132 | K182: -0.5824517132 | L182: -0.582451 | M182: 1.05156 | N182: 0.293 | O182: 0.607694 | P182: no | Q182: ADAMTS4 | R182: ADAMTS4 | S182: ADAMTS4 | T182: chr1:161159537-161168845 | U182: Mim200b_rom | V182: C67_HUVEC | W182: OK | X182: 2.72885 | Y182: 5.35147 | Z182: -0.9716421467 | AA182: 0.9716421467 | AB182: 0.971641 | AC182: -1.51602 | AD182: 0.129514 | AE182: 0.439191 | AF182: no
A183: PLOD2 | B183: PLOD2 | C183: PLOD2 | D183: chr3:145787227-145879282 | E183: IN_200b_rom | F183: C67_HUVEC | G183: OK | H183: 71.2391 | I183: 47.6209 | J183: 0.5810744035 | K183: -0.5810744035 | L183: -0.581072 | M183: 0.80045 | N183: 0.42345 | O183: 0.713129 | P183: no | Q183: PLOD2 | R183: PLOD2 | S183: PLOD2 | T183: chr3:145787227-145879282 | U183: Mim200b_rom | V183: C67_HUVEC | W183: OK | X183: 40.1341 | Y183: 50.157 | Z183: -0.3216225142 | AA183: 0.3216225142 | AB183: 0.321624 | AC183: -0.589831 | AD183: 0.555304 | AE183: 0.816438 | AF183: no
A184: EPOR | B184: EPOR | C184: EPOR | D184: chr19:11487880-11495018 | E184: IN_200b_rom | F184: C67_HUVEC | G184: OK | H184: 9.92733 | I184: 6.64144 | J184: 0.5799096693 | K184: -0.5799096693 | L184: -0.579909 | M184: 1.00171 | N184: 0.316484 | O184: 0.630924 | P184: no | Q184: EPOR | R184: EPOR | S184: EPOR | T184: chr19:11487880-11495018 | U184: Mim200b_rom | V184: C67_HUVEC | W184: OK | X184: 2.00839 | Y184: 6.98936 | Z184: -1.799120911 | AA184: 1.799120911 | AB184: 1.79912 | AC184: -2.77122 | AD184: 0.00558469 | AE184: 0.0722078 | AF184: no
A185: POLA1 | B185: POLA1 | C185: POLA1 | D185: chrX:24712063-25015102 | E185: IN_200b_rom | F185: C67_HUVEC | G185: OK | H185: 0.899487 | I185: 0.601802 | J185: 0.5798135296 | K185: -0.5798135296 | L185: -0.579814 | M185: 0.694475 | N185: 0.487384 | O185: 0.757026 | P185: no | Q185: POLA1 | R185: POLA1 | S185: POLA1 | T185: chrX:24712063-25015102 | U185: Mim200b_rom | V185: C67_HUVEC | W185: OK | X185: 0.479009 | Y185: 0.633946 | Z185: -0.404307193 | AA185: 0.404307193 | AB185: 0.404306 | AC185: -0.424414 | AD185: 0.671264 | AE185: 0.873765 | AF185: no
A186: PREX1 | B186: PREX1 | C186: PREX1 | D186: chr20:47240792-47444420 | E186: IN_200b_rom | F186: C67_HUVEC | G186: OK | H186: 19.2341 | I186: 12.8748 | J186: 0.5791163035 | K186: -0.5791163035 | L186: -0.579124 | M186: 0.933407 | N186: 0.35061 | O186: 0.660492 | P186: no | Q186: PREX1 | R186: PREX1 | S186: PREX1 | T186: chr20:47240792-47444420 | U186: Mim200b_rom | V186: C67_HUVEC | W186: OK | X186: 10.9456 | Y186: 13.5533 | Z186: -0.308293126 | AA186: 0.308293126 | AB186: 0.308289 | AC186: -0.486949 | AD186: 0.626295 | AE186: 0.853847 | AF186: no
A187: LPXN | B187: LPXN | C187: LPXN | D187: chr11:58294343-58345639 | E187: IN_200b_rom | F187: C67_HUVEC | G187: OK | H187: 77.9332 | I187: 52.1957 | J187: 0.5783070966 | K187: -0.5783070966 | L187: -0.578307 | M187: 0.915569 | N187: 0.359893 | O187: 0.66753 | P187: no | Q187: LPXN | R187: LPXN | S187: LPXN | T187: chr11:58294343-58345639 | U187: Mim200b_rom | V187: C67_HUVEC | W187: OK | X187: 24.742 | Y187: 54.9523 | Z187: -1.151217742 | AA187: 1.151217742 | AB187: 1.15122 | AC187: -1.9254 | AD187: 0.0541793 | AE187: 0.280456 | AF187: no
A188: GPD1L | B188: GPD1L | C188: GPD1L | D188: chr3:32148002-32210207 | E188: IN_200b_rom | F188: C67_HUVEC | G188: OK | H188: 2.90008 | I188: 1.94254 | J188: 0.5781483918 | K188: -0.5781483918 | L188: -0.578148 | M188: 0.860184 | N188: 0.389687 | O188: 0.689195 | P188: no | Q188: GPD1L | R188: GPD1L | S188: GPD1L | T188: chr3:32148002-32210207 | U188: Mim200b_rom | V188: C67_HUVEC | W188: OK | X188: 1.33886 | Y188: 2.04533 | Z188: -0.61132852 | AA188: 0.61132852 | AB188: 0.611327 | AC188: -0.778552 | AD188: 0.436244 | AE188: 0.740559 | AF188: no
A189: PCDHGA7 | B189: PCDHGA7 | C189: PCDHGA7 | D189: chr5:140710251-140892548 | E189: IN_200b_rom | F189: C67_HUVEC | G189: OK | H189: 2.20769 | I189: 1.47977 | J189: 0.5771646498 | K189: -0.5771646498 | L189: -0.577161 | M189: 0.809725 | N189: 0.418098 | O189: 0.709367 | P189: no | Q189: PCDHGA7 | R189: PCDHGA7 | S189: PCDHGA7 | T189: chr5:140710251-140892548 | U189: Mim200b_rom | V189: C67_HUVEC | W189: OK | X189: 0.925926 | Y189: 1.56171 | Z189: -0.7541577757 | AA189: 0.7541577757 | AB189: 0.75416 | AC189: -0.904761 | AD189: 0.365592 | AE189: 0.689038 | AF189: no
A190: WDPCP | B190: WDPCP | C190: WDPCP | D190: chr2:63348534-63834330 | E190: IN_200b_rom | F190: C67_HUVEC | G190: OK | H190: 0.932034 | I190: 0.627756 | J190: 0.5701786718 | K190: -0.5701786718 | L190: -0.570179 | M190: 0.591543 | N190: 0.554157 | O190: 0.79482 | P190: no | Q190: WDPCP | R190: WDPCP | S190: WDPCP | T190: chr2:63348534-63834330 | U190: Mim200b_rom | V190: C67_HUVEC | W190: OK | X190: 0.474092 | Y190: 0.661041 | Z190: -0.4795727066 | AA190: 0.4795727066 | AB190: 0.479574 | AC190: -0.43867 | AD190: 0.660901 | AE190: 0.86904 | AF190: no
A191: RAB5C | B191: RAB5C | C191: RAB5C | D191: chr17:40276996-40307022 | E191: IN_200b_rom | F191: C67_HUVEC | G191: OK | H191: 148.09 | I191: 100.076 | J191: 0.565378192 | K191: -0.565378192 | L191: -0.565377 | M191: 0.850985 | N191: 0.394778 | O191: 0.691746 | P191: no | Q191: RAB5C | R191: RAB5C | S191: RAB5C | T191: chr17:40276996-40307022 | U191: Mim200b_rom | V191: C67_HUVEC | W191: OK | X191: 80.5498 | Y191: 105.268 | Z191: -0.386114032 | AA191: 0.386114032 | AB191: 0.386121 | AC191: -0.586064 | AD191: 0.557833 | AE191: 0.81788 | AF191: no
A192: GOLIM4 | B192: GOLIM4 | C192: GOLIM4 | D192: chr3:167727653-167813417 | E192: IN_200b_rom | F192: C67_HUVEC | G192: OK | H192: 8.24088 | I192: 5.56939 | J192: 0.5652790816 | K192: -0.5652790816 | L192: -0.56528 | M192: 1.004 | N192: 0.315377 | O192: 0.629707 | P192: no | Q192: GOLIM4 | R192: GOLIM4 | S192: GOLIM4 | T192: chr3:167727653-167813417 | U192: Mim200b_rom | V192: C67_HUVEC | W192: OK | X192: 3.39693 | Y192: 5.86902 | Z192: -0.7888881353 | AA192: 0.7888881353 | AB192: 0.788887 | AC192: -1.20939 | AD192: 0.226514 | AE192: 0.562058 | AF192: no
A193: VCAM1 | B193: VCAM1 | C193: VCAM1 | D193: chr1:101185195-101204601 | E193: IN_200b_rom | F193: C67_HUVEC | G193: OK | H193: 27.2886 | I193: 18.5644 | J193: 0.5557596931 | K193: -0.5557596931 | L193: -0.555754 | M193: 0.981507 | N193: 0.326343 | O193: 0.639474 | P193: no | Q193: VCAM1 | R193: VCAM1 | S193: VCAM1 | T193: chr1:101185195-101204601 | U193: Mim200b_rom | V193: C67_HUVEC | W193: OK | X193: 4.90304 | Y193: 19.5512 | Z193: -1.995508722 | AA193: 1.995508722 | AB193: 1.9955 | AC193: -3.37418 | AD193: 0.00074037 | AE193: 0.0172567 | AF193: yes
A194: APBA1 | B194: APBA1 | C194: APBA1 | D194: chr9:72042448-72287275 | E194: IN_200b_rom | F194: C67_HUVEC | G194: OK | H194: 2.72678 | I194: 1.85594 | J194: =IF(G194="NOTEST","",IF(H194=0,-LOG(I194,2),IF(I194=0,LOG(H194,2),LOG((H194/I194),2)))) -> 0.5550482357 | K194: =IF(G194="NOTEST","",IF(H194=0,LOG(I194,2),IF(I194=0,-LOG(H194,2),LOG((I194/H194),2)))) -> -0.5550482357 | L194: -0.555045 | M194: 0.918048 | N194: 0.358594 | O194: 0.666623 | P194: no | Q194: APBA1 | R194: APBA1 | S194: APBA1 | T194: chr9:72042448-72287275 | U194: Mim200b_rom | V194: C67_HUVEC | W194: OK | X194: 1.31089 | Y194: 1.95366 | Z194: =IF(W194="NOTEST","",IF(X194=0,-LOG(Y194,2),IF(Y194=0,LOG(X194,2),LOG((X194/Y194),2)))) -> -0.575632783 | AA194: =IF(W194="NOTEST","",IF(X194=0,LOG(Y194,2),IF(Y194=0,-LOG(X194,2),LOG((Y194/X194),2)))) -> 0.575632783 | AB194: 0.575633 | AC194: -0.820066 | AD194: 0.412178 | AE194: 0.724347 | AF194: no
A195: FAM131C | B195: FAM131C | C195: FAM131C | D195: chr1:16384263-16400127 | E195: IN_200b_rom | F195: C67_HUVEC | G195: OK | H195: 3.0154 | I195: 2.05366 | J195: 0.5541520401 | K195: -0.5541520401 | L195: -0.554155 | M195: 0.676386 | N195: 0.498796 | O195: 0.763226 | P195: no | Q195: FAM131C | R195: FAM131C | S195: FAM131C | T195: chr1:16384263-16400127 | U195: Mim200b_rom | V195: C67_HUVEC | W195: OK | X195: 1.6502 | Y195: 2.16254 | Z195: -0.3900859322 | AA195: 0.3900859322 | AB195: 0.39009 | AC195: -0.418334 | AD195: 0.675703 | AE195: 0.876668 | AF195: no
A196: MSN | B196: MSN | C196: MSN | D196: chrX:64887510-64961793 | E196: IN_200b_rom | F196: C67_HUVEC | G196: OK | H196: 312.925 | I196: 213.12 | J196: 0.5541509345 | K196: -0.5541509345 | L196: -0.55415 | M196: 0.316076 | N196: 0.751945 | O196: 0.901675 | P196: no | Q196: MSN | R196: MSN | S196: MSN | T196: chrX:64887510-64961793 | U196: Mim200b_rom | V196: C67_HUVEC | W196: OK | X196: 157.378 | Y196: 224.401 | Z196: -0.5118452256 | AA196: 0.5118452256 | AB196: 0.511843 | AC196: -0.396246 | AD196: 0.691924 | AE196: 0.884968 | AF196: no
A197: EIF5B | B197: EIF5B | C197: EIF5B | D197: chr2:99953833-100016728 | E197: IN_200b_rom | F197: C67_HUVEC | G197: OK | H197: 30.5744 | I197: 20.8372 | J197: 0.5531627588 | K197: -0.5531627588 | L197: -0.55316 | M197: 0.84447 | N197: 0.398407 | O197: 0.693916 | P197: no | Q197: EIF5B | R197: EIF5B | S197: EIF5B | T197: chr2:99953833-100016728 | U197: Mim200b_rom | V197: C67_HUVEC | W197: OK | X197: 16.1111 | Y197: 21.9671 | Z197: -0.4472894254 | AA197: 0.4472894254 | AB197: 0.447289 | AC197: -0.694006 | AD197: 0.487679 | AE197: 0.773889 | AF197: no
A198: BACE1 | B198: BACE1 | C198: BACE1 | D198: chr11:117103403-117186972 | E198: IN_200b_rom | F198: C67_HUVEC | G198: OK | H198: 10.1842 | I198: 6.9543 | J198: 0.550355447 | K198: -0.550355447 | L198: -0.550354 | M198: 1.31694 | N198: 0.187859 | O198: 0.500846 | P198: no | Q198: BACE1 | R198: BACE1 | S198: BACE1 | T198: chr11:117103403-117186972 | U198: Mim200b_rom | V198: C67_HUVEC | W198: OK | X198: 5.43859 | Y198: 7.32473 | Z198: -0.4295429115 | AA198: 0.4295429115 | AB198: 0.429543 | AC198: -0.85779 | AD198: 0.391008 | AE198: 0.709489 | AF198: no
A199: MAGEH1 | B199: MAGEH1 | C199: MAGEH1 | D199: chrX:55478537-55479999 | E199: IN_200b_rom | F199: C67_HUVEC | G199: OK | H199: 16.1703 | I199: 11.1281 | J199: 0.5391391552 | K199: -0.5391391552 | L199: -0.539139 | M199: 0.938482 | N199: 0.347997 | O199: 0.658605 | P199: no | Q199: MAGEH1 | R199: MAGEH1 | S199: MAGEH1 | T199: chrX:55478537-55479999 | U199: Mim200b_rom | V199: C67_HUVEC | W199: OK | X199: 9.79597 | Y199: 11.7111 | Z199: -0.2576163308 | AA199: 0.2576163308 | AB199: 0.257612 | AC199: -0.394651 | AD199: 0.693101 | AE199: 0.88523 | AF199: no
A200: CABLES1 | B200: CABLES1 | C200: CABLES1 | D200: chr18:20714527-20840434 | E200: IN_200b_rom | F200: C67_HUVEC | G200: OK | H200: 11.3638 | I200: 7.82623 | J200: 0.5380559314 | K200: -0.5380559314 | L200: -0.538057 | M200: 0.984269 | N200: 0.324983 | O200: 0.638196 | P200: no | Q200: CABLES1 | R200: CABLES1 | S200: CABLES1 | T200: chr18:20714527-20840434 | U200: Mim200b_rom | V200: C67_HUVEC | W200: OK | X200: 5.60469 | Y200: 8.24064 | Z200: -0.5561218084 | AA200: 0.5561218084 | AB200: 0.556121 | AC200: -0.931615 | AD200: 0.351535 | AE200: 0.678585 | AF200: no
... 178 more rows
